Department family,Entity,Date,Expense type,Expense area,Supplier,Transaction number,Amount,VAT registration number,
"Department for Business, Innovation and Skills",Intellectual Property Office,03/07/2014,Travel and subsistence UK,IMPROVE Project,Personal expenses name witheld,ER119424,16.90,Not applicable,
"Department for Business, Innovation and Skills",Intellectual Property Office,22/07/2014,Computer Hardware,Business Support Directorate,Drake AV Video Ltd,70451,12803.36,Not applicable,
"Department for Business, Innovation and Skills",Intellectual Property Office,03/07/2014,Plant and Machinery,"People, Property and Services Directorate",Cofely Workplace Ltd,M122157,137605.75,Not applicable,
"Department for Business, Innovation and Skills",Intellectual Property Office,04/07/2014,Agency Staff,"People, Property and Services Directorate",Acorn Recruitment Ltd,725312,35.66,Not applicable,
"Department for Business, Innovation and Skills",Intellectual Property Office,28/07/2014,Agency Staff,Patents Directorate,Brook Street (UK) Ltd,30519225,101.52,Not applicable,
"Department for Business, Innovation and Skills",Intellectual Property Office,28/07/2014,Agency Staff,"People, Property and Services Directorate",Brook Street (UK) Ltd,30519225,107.54,Not applicable,
"Department for Business, Innovation and Skills",Intellectual Property Office,24/07/2014,Agency Staff,International Policy Directorate,Brook Street (UK) Ltd,30530011,354.90,Not applicable,
"Department for Business, Innovation and Skills",Intellectual Property Office,25/07/2014,Agency Staff,Central Support,Brook Street (UK) Ltd,30541405,430.20,Not applicable,
"Department for Business, Innovation and Skills",Intellectual Property Office,25/07/2014,Agency Staff,International Policy Directorate,Brook Street (UK) Ltd,30541405,475.80,Not applicable,
"Department for Business, Innovation and Skills",Intellectual Property Office,04/07/2014,Agency Staff,"People, Property and Services Directorate",Hays Specialist Recruitment,1004477695,491.74,Not applicable,
"Department for Business, Innovation and Skills",Intellectual Property Office,24/07/2014,Agency Staff,Central Support,Brook Street (UK) Ltd,30530011,530.58,Not applicable,
"Department for Business, Innovation and Skills",Intellectual Property Office,25/07/2014,Agency Staff,Patents Directorate,Brook Street (UK) Ltd,30541405,537.74,Not applicable,
"Department for Business, Innovation and Skills",Intellectual Property Office,24/07/2014,Agency Staff,"People, Property and Services Directorate",Brook Street (UK) Ltd,30530011,537.74,Not applicable,
"Department for Business, Innovation and Skills",Intellectual Property Office,28/07/2014,Agency Staff,Patents Directorate,Brook Street (UK) Ltd,30519225,537.74,Not applicable,
"Department for Business, Innovation and Skills",Intellectual Property Office,24/07/2014,Agency Staff,Patents Directorate,Brook Street (UK) Ltd,30530011,537.74,Not applicable,
"Department for Business, Innovation and Skills",Intellectual Property Office,28/07/2014,Agency Staff,Central Support,Brook Street (UK) Ltd,30519225,548.50,Not applicable,
"Department for Business, Innovation and Skills",Intellectual Property Office,25/07/2014,Agency Staff,"People, Property and Services Directorate",Brook Street (UK) Ltd,30541405,548.50,Not applicable,
"Department for Business, Innovation and Skills",Intellectual Property Office,28/07/2014,Agency Staff,International Policy Directorate,Brook Street (UK) Ltd,30519225,577.20,Not applicable,
"Department for Business, Innovation and Skills",Intellectual Property Office,17/07/2014,Agency Staff,Copyright and IP Enforcement Directorate,Michael Page International Recruitment Ltd,5672102,600.00,Not applicable,
"Department for Business, Innovation and Skills",Intellectual Property Office,17/07/2014,Agency Staff,"People, Property and Services Directorate",Hays Specialist Recruitment,1004499830,623.75,Not applicable,
"Department for Business, Innovation and Skills",Intellectual Property Office,18/07/2014,Agency Staff,"People, Property and Services Directorate",Hays Specialist Recruitment,1004522721,624.90,Not applicable,
"Department for Business, Innovation and Skills",Intellectual Property Office,15/07/2014,Agency Staff,Copyright and IP Enforcement Directorate,Brook Street (UK) Ltd,30519226,630.12,Not applicable,
"Department for Business, Innovation and Skills",Intellectual Property Office,28/07/2014,Agency Staff,Trade Marks Directorate,Brook Street (UK) Ltd,30519225,818.50,Not applicable,
"Department for Business, Innovation and Skills",Intellectual Property Office,07/07/2014,Agency Staff,Copyright and IP Enforcement Directorate,Michael Page International Recruitment Ltd,5665465,885.78,Not applicable,
"Department for Business, Innovation and Skills",Intellectual Property Office,21/07/2014,Agency Staff,Copyright and IP Enforcement Directorate,Michael Page International Recruitment Ltd,5672533,885.78,Not applicable,
"Department for Business, Innovation and Skills",Intellectual Property Office,11/07/2014,Agency Staff,Copyright and IP Enforcement Directorate,Michael Page International Recruitment Ltd,5668868,927.96,Not applicable,
"Department for Business, Innovation and Skills",Intellectual Property Office,30/07/2014,Agency Staff,Copyright and IP Enforcement Directorate,Michael Page International Recruitment Ltd,5676265,970.14,Not applicable,
"Department for Business, Innovation and Skills",Intellectual Property Office,24/07/2014,Agency Staff,"People, Property and Services Directorate",Brook Street (UK) Ltd,30530011,1235.16,Not applicable,
"Department for Business, Innovation and Skills",Intellectual Property Office,25/07/2014,Agency Staff,Trade Marks Directorate,Brook Street (UK) Ltd,30541405,1249.91,Not applicable,
"Department for Business, Innovation and Skills",Intellectual Property Office,25/07/2014,Agency Staff,"People, Property and Services Directorate",Brook Street (UK) Ltd,30541405,1319.76,Not applicable,
"Department for Business, Innovation and Skills",Intellectual Property Office,24/07/2014,Agency Staff,Trade Marks Directorate,Brook Street (UK) Ltd,30530011,1456.28,Not applicable,
"Department for Business, Innovation and Skills",Intellectual Property Office,28/07/2014,Agency Staff,"People, Property and Services Directorate",Brook Street (UK) Ltd,30519225,1560.02,Not applicable,
"Department for Business, Innovation and Skills",Intellectual Property Office,02/07/2014,Agency Staff,Copyright and IP Enforcement Directorate,Michael Page International Recruitment Ltd,5663886,2400.00,Not applicable,
"Department for Business, Innovation and Skills",Intellectual Property Office,08/07/2014,Agency Staff,Copyright and IP Enforcement Directorate,Michael Page International Recruitment Ltd,5667054,3000.00,Not applicable,
"Department for Business, Innovation and Skills",Intellectual Property Office,16/07/2014,Agency Staff,Copyright and IP Enforcement Directorate,Michael Page International Recruitment Ltd,5670431,3000.00,Not applicable,
"Department for Business, Innovation and Skills",Intellectual Property Office,03/07/2014,Training,Finance Directorate,University of  South Wales,OP/C002222,-658.50,Not applicable,
"Department for Business, Innovation and Skills",Intellectual Property Office,10/07/2014,Training,Business Support Directorate,Business Language Services Ltd,100022,-37.50,Not applicable,
"Department for Business, Innovation and Skills",Intellectual Property Office,14/07/2014,Training,Trade Marks Directorate,Business Language Services Ltd,13792,37.50,Not applicable,
"Department for Business, Innovation and Skills",Intellectual Property Office,07/07/2014,Training,"People, Property and Services Directorate",Teamworks,2239-14-IPO-SUP-6-14,67.50,Not applicable,
"Department for Business, Innovation and Skills",Intellectual Property Office,03/07/2014,Training,Patents Directorate,J A Kemp,52407,85.50,Not applicable,
"Department for Business, Innovation and Skills",Intellectual Property Office,15/07/2014,Training,Patents Directorate,Business Language Services Ltd,13783,106.50,Not applicable,
"Department for Business, Innovation and Skills",Intellectual Property Office,21/07/2014,Training,Innovation Directorate,Capita Business Services  Ltd,X43883,140.00,Not applicable,
"Department for Business, Innovation and Skills",Intellectual Property Office,22/07/2014,Training,International Policy Directorate,Capita Business Services  Ltd,X44389,147.00,Not applicable,
"Department for Business, Innovation and Skills",Intellectual Property Office,10/07/2014,Training,Business Support Directorate,Business Language Services Ltd,13791,150.00,Not applicable,
"Department for Business, Innovation and Skills",Intellectual Property Office,08/07/2014,Training,Innovation Directorate,Capita Business Services  Ltd,X43395,161.00,Not applicable,
"Department for Business, Innovation and Skills",Intellectual Property Office,02/07/2014,Training,Innovation Directorate,Whitehall & Industry Group,2140301,250.00,Not applicable,
"Department for Business, Innovation and Skills",Intellectual Property Office,03/07/2014,Training,"People, Property and Services Directorate",Celtech Consultancy Ltd,FRA-0023-14-01,250.00,Not applicable,
"Department for Business, Innovation and Skills",Intellectual Property Office,02/07/2014,Training,Innovation Directorate,Whitehall & Industry Group,2140300,250.00,Not applicable,
"Department for Business, Innovation and Skills",Intellectual Property Office,02/07/2014,Training,Patents Directorate,Cardiff University,1103869,340.00,Not applicable,
"Department for Business, Innovation and Skills",Intellectual Property Office,21/07/2014,Training,Finance Directorate,East of England Ambulance NHS Trust,652472,379.00,Not applicable,
"Department for Business, Innovation and Skills",Intellectual Property Office,18/07/2014,Training,Patents Directorate,Boerhaave CME,232766,381.77,Not applicable,
"Department for Business, Innovation and Skills",Intellectual Property Office,17/07/2014,Training,"People, Property and Services Directorate",Welsh Assembly Government,1800051776,400.00,Not applicable,
"Department for Business, Innovation and Skills",Intellectual Property Office,16/07/2014,Training,"People, Property and Services Directorate",St John Cymru-Wales,86080,400.00,Not applicable,
"Department for Business, Innovation and Skills",Intellectual Property Office,17/07/2014,Training,Business Support Directorate,Open Connections Solutions Limited,260220,425.00,Not applicable,
"Department for Business, Innovation and Skills",Intellectual Property Office,15/07/2014,Training,Trade Marks Directorate,East of England Trading Standards Assoc. Ltd,2064,432.00,Not applicable,
"Department for Business, Innovation and Skills",Intellectual Property Office,16/07/2014,Training,"People, Property and Services Directorate",St John Cymru-Wales,86081,450.00,Not applicable,
"Department for Business, Innovation and Skills",Intellectual Property Office,03/07/2014,Training,Trade Marks Directorate,University of  South Wales,OP-I031076,579.48,Not applicable,
"Department for Business, Innovation and Skills",Intellectual Property Office,03/07/2014,Training,Copyright and IP Enforcement Directorate,University of  South Wales,OP-I031077,592.65,Not applicable,
"Department for Business, Innovation and Skills",Intellectual Property Office,03/07/2014,Training,Innovation Directorate,University of  South Wales,OP-I031077,592.65,Not applicable,
"Department for Business, Innovation and Skills",Intellectual Property Office,07/07/2014,Training,Innovation Directorate,Capita Business Services  Ltd,INV-19573,798.00,Not applicable,
"Department for Business, Innovation and Skills",Intellectual Property Office,09/07/2014,Training,Innovation Directorate,Enterprise Educators UK,1999,1000.00,Not applicable,
"Department for Business, Innovation and Skills",Intellectual Property Office,03/07/2014,Training,Patents Directorate,University of  South Wales,OP-I031077,1185.30,Not applicable,
"Department for Business, Innovation and Skills",Intellectual Property Office,08/07/2014,Training,Patents Directorate,Capita Business Services  Ltd,X43509,1294.00,Not applicable,
"Department for Business, Innovation and Skills",Intellectual Property Office,25/07/2014,Training,International Policy Directorate,"University of Bern, World Trade Institute Foundation",Christabel Koh WTI CUHK Summer Programme,1386.19,Not applicable,
"Department for Business, Innovation and Skills",Intellectual Property Office,03/07/2014,Training,Trade Marks Directorate,University of  South Wales,OP-I031077,1777.95,Not applicable,
"Department for Business, Innovation and Skills",Intellectual Property Office,03/07/2014,Training,Patents Directorate,University of  South Wales,OP-I031077,2370.60,Not applicable,
"Department for Business, Innovation and Skills",Intellectual Property Office,03/07/2014,Training,Patents Directorate,University of  South Wales,OP-I031077,5333.85,Not applicable,
"Department for Business, Innovation and Skills",Intellectual Property Office,30/07/2014,Training,Patents Directorate,Thomas Telford Ltd,EVENT DEPOSIT 11-13.11.14,5388.00,Not applicable,
"Department for Business, Innovation and Skills",Intellectual Property Office,03/07/2014,Training,Patents Directorate,University of  South Wales,OP-I031076,5794.80,Not applicable,
"Department for Business, Innovation and Skills",Intellectual Property Office,03/07/2014,Training,Patents Directorate,University of  South Wales,OP-I031076,8112.72,Not applicable,
"Department for Business, Innovation and Skills",Intellectual Property Office,09/07/2014,Training,"People, Property and Services Directorate",HRG UK,130511433INV,6.68,Not applicable,
"Department for Business, Innovation and Skills",Intellectual Property Office,09/07/2014,Training,"People, Property and Services Directorate",HRG UK,130501402INV,32.71,Not applicable,
"Department for Business, Innovation and Skills",Intellectual Property Office,09/07/2014,Training,"People, Property and Services Directorate",HRG UK,130501401INV,52.46,Not applicable,
"Department for Business, Innovation and Skills",Intellectual Property Office,09/07/2014,Training,"People, Property and Services Directorate",HRG UK,130507456INV,103.53,Not applicable,
"Department for Business, Innovation and Skills",Intellectual Property Office,25/07/2014,Training,"People, Property and Services Directorate",4imprint Direct Ltd,1203227,150.54,Not applicable,
"Department for Business, Innovation and Skills",Intellectual Property Office,14/07/2014,Training,"People, Property and Services Directorate",Raspberry Catering Ltd,90,294.00,Not applicable,
"Department for Business, Innovation and Skills",Intellectual Property Office,25/07/2014,Training,"People, Property and Services Directorate",Success Intelligence Ltd,740,5270.00,Not applicable,
"Department for Business, Innovation and Skills",Intellectual Property Office,25/07/2014,Training,"People, Property and Services Directorate",Success Intelligence Ltd,753,6270.00,Not applicable,
"Department for Business, Innovation and Skills",Intellectual Property Office,02/07/2014,Subscription to Professional bodies,"People, Property and Services Directorate",Personal expenses name witheld,52406,145.00,Not applicable,
"Department for Business, Innovation and Skills",Intellectual Property Office,04/07/2014,Subscription to Professional bodies,"People, Property and Services Directorate",Personal expenses name witheld,52415,145.00,Not applicable,
"Department for Business, Innovation and Skills",Intellectual Property Office,04/07/2014,Subscription to Professional bodies,"People, Property and Services Directorate",Personal expenses name witheld,52414,145.00,Not applicable,
"Department for Business, Innovation and Skills",Intellectual Property Office,01/07/2014,Subscription to Professional bodies,"People, Property and Services Directorate",Personal expenses name witheld,52404,145.00,Not applicable,
"Department for Business, Innovation and Skills",Intellectual Property Office,15/07/2014,Subscription to Professional bodies,"People, Property and Services Directorate",Personal expenses name witheld,52440,145.00,Not applicable,
"Department for Business, Innovation and Skills",Intellectual Property Office,14/07/2014,Subscription to Professional bodies,"People, Property and Services Directorate",Personal expenses name witheld,52436,145.00,Not applicable,
"Department for Business, Innovation and Skills",Intellectual Property Office,08/07/2014,Subscription to Professional bodies,"People, Property and Services Directorate",Personal expenses name witheld,52425,165.00,Not applicable,
"Department for Business, Innovation and Skills",Intellectual Property Office,04/07/2014,Subscription to Professional bodies,"People, Property and Services Directorate",Personal expenses name witheld,52413,165.00,Not applicable,
"Department for Business, Innovation and Skills",Intellectual Property Office,22/07/2014,Subscription to Professional bodies,"People, Property and Services Directorate",Personal expenses name witheld,52449,165.00,Not applicable,
"Department for Business, Innovation and Skills",Intellectual Property Office,04/07/2014,Subscription to Professional bodies,"People, Property and Services Directorate",Personal expenses name witheld,52416,190.00,Not applicable,
"Department for Business, Innovation and Skills",Intellectual Property Office,04/07/2014,Subscription to Professional bodies,"People, Property and Services Directorate",Personal expenses name witheld,52417,190.00,Not applicable,
"Department for Business, Innovation and Skills",Intellectual Property Office,21/07/2014,Childcare costs,"People, Property and Services Directorate",P&MM Ltd Re Childcare Plus,501465,149.11,Not applicable,
"Department for Business, Innovation and Skills",Intellectual Property Office,18/07/2014,Childcare costs,"People, Property and Services Directorate",P&MM Ltd Re Childcare Plus,501479,6390.34,Not applicable,
"Department for Business, Innovation and Skills",Intellectual Property Office,18/07/2014,Childcare costs,"People, Property and Services Directorate",P&MM Ltd Re Childcare Plus,1015841,6541.72,Not applicable,
"Department for Business, Innovation and Skills",Intellectual Property Office,14/07/2014,Relocation Removals & Excess Fare,"People, Property and Services Directorate",Personal expenses name witheld,52438,24.60,Not applicable,
"Department for Business, Innovation and Skills",Intellectual Property Office,25/07/2014,Relocation Removals & Excess Fare,"People, Property and Services Directorate",Andrews Property Services,52450,75.00,Not applicable,
"Department for Business, Innovation and Skills",Intellectual Property Office,04/07/2014,Relocation Removals & Excess Fare,"People, Property and Services Directorate",Personal expenses name witheld,52418,594.60,Not applicable,
"Department for Business, Innovation and Skills",Intellectual Property Office,09/07/2014,Recruitment Advertising,Patents Directorate,HRG UK,130409114REV,-98.42,Not applicable,
"Department for Business, Innovation and Skills",Intellectual Property Office,09/07/2014,Recruitment Advertising,Patents Directorate,HRG UK,130351462REV,-91.93,Not applicable,
"Department for Business, Innovation and Skills",Intellectual Property Office,09/07/2014,Recruitment Advertising,Patents Directorate,HRG UK,130345533REV,-91.93,Not applicable,
"Department for Business, Innovation and Skills",Intellectual Property Office,16/07/2014,Recruitment Advertising,Patents Directorate,K Singh,52442,25.00,Not applicable,
"Department for Business, Innovation and Skills",Intellectual Property Office,16/07/2014,Recruitment Advertising,Patents Directorate,M Steele,52443,41.50,Not applicable,
"Department for Business, Innovation and Skills",Intellectual Property Office,08/07/2014,Recruitment Advertising,Patents Directorate,Leasedrive Velo Rental Management Ltd,RHI01184609,43.73,Not applicable,
"Department for Business, Innovation and Skills",Intellectual Property Office,21/07/2014,Recruitment Advertising,Patents Directorate,Z Stentiford,52447,45.50,Not applicable,
"Department for Business, Innovation and Skills",Intellectual Property Office,16/07/2014,Recruitment Advertising,Patents Directorate,D Gordon,52441,50.00,Not applicable,
"Department for Business, Innovation and Skills",Intellectual Property Office,07/07/2014,Recruitment Advertising,Patents Directorate,C Brain,52421,50.10,Not applicable,
"Department for Business, Innovation and Skills",Intellectual Property Office,18/07/2014,Recruitment Advertising,Patents Directorate,University of Liverpool,21445787,60.00,Not applicable,
"Department for Business, Innovation and Skills",Intellectual Property Office,09/07/2014,Recruitment Advertising,Patents Directorate,HRG UK,130351462INV,91.84,Not applicable,
"Department for Business, Innovation and Skills",Intellectual Property Office,09/07/2014,Recruitment Advertising,Patents Directorate,HRG UK,130345533INV,91.84,Not applicable,
"Department for Business, Innovation and Skills",Intellectual Property Office,09/07/2014,Recruitment Advertising,Patents Directorate,HRG UK,130351462,91.93,Not applicable,
"Department for Business, Innovation and Skills",Intellectual Property Office,09/07/2014,Recruitment Advertising,Patents Directorate,HRG UK,130345533,91.93,Not applicable,
"Department for Business, Innovation and Skills",Intellectual Property Office,09/07/2014,Recruitment Advertising,Patents Directorate,HRG UK,130409114INV,98.32,Not applicable,
"Department for Business, Innovation and Skills",Intellectual Property Office,09/07/2014,Recruitment Advertising,Patents Directorate,HRG UK,130409114,98.42,Not applicable,
"Department for Business, Innovation and Skills",Intellectual Property Office,07/07/2014,Recruitment Advertising,Patents Directorate,E Awoodun,52420,123.30,Not applicable,
"Department for Business, Innovation and Skills",Intellectual Property Office,30/07/2014,Recruitment Advertising,Patents Directorate,Matthew Williamson,52452,168.00,Not applicable,
"Department for Business, Innovation and Skills",Intellectual Property Office,18/07/2014,Recruitment Advertising,Patents Directorate,University of Warwick,90778440,732.00,Not applicable,
"Department for Business, Innovation and Skills",Intellectual Property Office,02/07/2014,Recruitment Advertising,"People, Property and Services Directorate",Michael Page International Recruitment Ltd,75565,13345.43,Not applicable,
"Department for Business, Innovation and Skills",Intellectual Property Office,09/07/2014,Travel and subsistence UK,Business Support Directorate,HRG UK,130336761REV,-250.56,Not applicable,
"Department for Business, Innovation and Skills",Intellectual Property Office,09/07/2014,Travel and subsistence UK,Business Support Directorate,HRG UK,130499466REV,-245.17,Not applicable,
Department for Business Innovation and Skills,Intellectual Property Office,09/07/2014,Travel and subsistence UK,Business Support Directorate,HRG UK,130456813REV,-245.17,Not applicable,
Department for Business Innovation and Skills,Intellectual Property Office,09/07/2014,Travel and subsistence UK,Business Support Directorate,HRG UK,130561535REV,-245.17,Not applicable,
Department for Business Innovation and Skills,Intellectual Property Office,09/07/2014,Travel and subsistence UK,Innovation Directorate,HRG UK,130628319REV,-245.17,Not applicable,
Department for Business Innovation and Skills,Intellectual Property Office,09/07/2014,Travel and subsistence UK,Business Support Directorate,HRG UK,130499677REV,-245.17,Not applicable,
Department for Business Innovation and Skills,Intellectual Property Office,09/07/2014,Travel and subsistence UK,Business Support Directorate,HRG UK,130405671REV,-245.17,Not applicable,
Department for Business Innovation and Skills,Intellectual Property Office,09/07/2014,Travel and subsistence UK,Copyright and IP Enforcement Directorate,HRG UK,130492458REV,-226.83,Not applicable,
Department for Business Innovation and Skills,Intellectual Property Office,09/07/2014,Travel and subsistence UK,Trade Marks Directorate,HRG UK,130534731REV,-226.30,Not applicable,
Department for Business Innovation and Skills,Intellectual Property Office,09/07/2014,Travel and subsistence UK,Trade Marks Directorate,HRG UK,130450317REV,-222.72,Not applicable,
Department for Business Innovation and Skills,Intellectual Property Office,09/07/2014,Travel and subsistence UK,Copyright and IP Enforcement Directorate,HRG UK,130487201REV,-222.21,Not applicable,
Department for Business Innovation and Skills,Intellectual Property Office,09/07/2014,Travel and subsistence UK,"People, Property and Services Directorate",HRG UK,130606800REV,-222.21,Not applicable,
Department for Business Innovation and Skills,Intellectual Property Office,09/07/2014,Travel and subsistence UK,Business Support Directorate,HRG UK,130380916REV,-222.21,Not applicable,
Department for Business Innovation and Skills,Intellectual Property Office,09/07/2014,Travel and subsistence UK,International Policy Directorate,HRG UK,130505521REV,-220.84,Not applicable,
Department for Business Innovation and Skills,Intellectual Property Office,09/07/2014,Travel and subsistence UK,Innovation Directorate,HRG UK,130416575REV,-217.34,Not applicable,
Department for Business Innovation and Skills,Intellectual Property Office,09/07/2014,Travel and subsistence UK,Innovation Directorate,HRG UK,130416509REV,-217.34,Not applicable,
Department for Business Innovation and Skills,Intellectual Property Office,09/07/2014,Travel and subsistence UK,Innovation Directorate,HRG UK,130351466REV,-216.84,Not applicable,
Department for Business Innovation and Skills,Intellectual Property Office,09/07/2014,Travel and subsistence UK,Innovation Directorate,HRG UK,130563488REV,-216.33,Not applicable,
Department for Business Innovation and Skills,Intellectual Property Office,09/07/2014,Travel and subsistence UK,Patents Directorate,HRG UK,130547052REV,-216.33,Not applicable,
Department for Business Innovation and Skills,Intellectual Property Office,09/07/2014,Travel and subsistence UK,Trade Marks Directorate,HRG UK,130534771REV,-216.33,Not applicable,
Department for Business Innovation and Skills,Intellectual Property Office,09/07/2014,Travel and subsistence UK,Copyright and IP Enforcement Directorate,HRG UK,130606804REV,-216.33,Not applicable,
Department for Business Innovation and Skills,Intellectual Property Office,09/07/2014,Travel and subsistence UK,Trade Marks Directorate,HRG UK,130355536REV,-212.73,Not applicable,
Department for Business Innovation and Skills,Intellectual Property Office,09/07/2014,Travel and subsistence UK,Business Support Directorate,HRG UK,130526978REV,-212.73,Not applicable,
Department for Business Innovation and Skills,Intellectual Property Office,09/07/2014,Travel and subsistence UK,Trade Marks Directorate,HRG UK,130380917REV,-212.73,Not applicable,
Department for Business Innovation and Skills,Intellectual Property Office,09/07/2014,Travel and subsistence UK,Trade Marks Directorate,HRG UK,130355367REV,-212.73,Not applicable,
Department for Business Innovation and Skills,Intellectual Property Office,09/07/2014,Travel and subsistence UK,Business Support Directorate,HRG UK,130526977REV,-212.73,Not applicable,
Department for Business Innovation and Skills,Intellectual Property Office,09/07/2014,Travel and subsistence UK,Business Support Directorate,HRG UK,130526979REV,-212.73,Not applicable,
Department for Business Innovation and Skills,Intellectual Property Office,09/07/2014,Travel and subsistence UK,Trade Marks Directorate,HRG UK,130358401REV,-212.73,Not applicable,
Department for Business Innovation and Skills,Intellectual Property Office,09/07/2014,Travel and subsistence UK,Trade Marks Directorate,HRG UK,130380914REV,-212.73,Not applicable,
Department for Business Innovation and Skills,Intellectual Property Office,09/07/2014,Travel and subsistence UK,Trade Marks Directorate,HRG UK,130481078REV,-212.73,Not applicable,
Department for Business Innovation and Skills,Intellectual Property Office,09/07/2014,Travel and subsistence UK,Business Support Directorate,HRG UK,130526976REV,-212.73,Not applicable,
Department for Business Innovation and Skills,Intellectual Property Office,09/07/2014,Travel and subsistence UK,Trade Marks Directorate,HRG UK,130380915REV,-212.73,Not applicable,
Department for Business Innovation and Skills,Intellectual Property Office,09/07/2014,Travel and subsistence UK,Trade Marks Directorate,HRG UK,130398395REV,-212.73,Not applicable,
Department for Business Innovation and Skills,Intellectual Property Office,09/07/2014,Travel and subsistence UK,Copyright and IP Enforcement Directorate,HRG UK,130533498REV,-212.73,Not applicable,
Department for Business Innovation and Skills,Intellectual Property Office,09/07/2014,Travel and subsistence UK,Trade Marks Directorate,HRG UK,130573897REV,-212.22,Not applicable,
Department for Business Innovation and Skills,Intellectual Property Office,09/07/2014,Travel and subsistence UK,Copyright and IP Enforcement Directorate,HRG UK,130458103REV,-212.22,Not applicable,
Department for Business Innovation and Skills,Intellectual Property Office,09/07/2014,Travel and subsistence UK,Trade Marks Directorate,HRG UK,130462238REV,-212.22,Not applicable,
Department for Business Innovation and Skills,Intellectual Property Office,09/07/2014,Travel and subsistence UK,Business Support Directorate,HRG UK,130380918REV,-212.22,Not applicable,
Department for Business Innovation and Skills,Intellectual Property Office,09/07/2014,Travel and subsistence UK,International Policy Directorate,HRG UK,130513193REV,-212.22,Not applicable,
Department for Business Innovation and Skills,Intellectual Property Office,09/07/2014,Travel and subsistence UK,Business Support Directorate,HRG UK,130616338REV,-212.22,Not applicable,
Department for Business Innovation and Skills,Intellectual Property Office,09/07/2014,Travel and subsistence UK,Patents Directorate,HRG UK,130380920REV,-212.22,Not applicable,
Department for Business Innovation and Skills,Intellectual Property Office,09/07/2014,Travel and subsistence UK,International Policy Directorate,HRG UK,130412917REV,-212.22,Not applicable,
Department for Business Innovation and Skills,Intellectual Property Office,09/07/2014,Travel and subsistence UK,International Policy Directorate,HRG UK,130590159REV,-212.22,Not applicable,
Department for Business Innovation and Skills,Intellectual Property Office,09/07/2014,Travel and subsistence UK,International Policy Directorate,HRG UK,130424082REV,-212.22,Not applicable,
Department for Business Innovation and Skills,Intellectual Property Office,09/07/2014,Travel and subsistence UK,International Policy Directorate,HRG UK,130455153REV,-212.22,Not applicable,
Department for Business Innovation and Skills,Intellectual Property Office,09/07/2014,Travel and subsistence UK,Business Support Directorate,HRG UK,130531740REV,-212.22,Not applicable,
Department for Business Innovation and Skills,Intellectual Property Office,09/07/2014,Travel and subsistence UK,Innovation Directorate,HRG UK,130351465REV,-212.22,Not applicable,
Department for Business Innovation and Skills,Intellectual Property Office,09/07/2014,Travel and subsistence UK,Innovation Directorate,HRG UK,130476500REV,-212.22,Not applicable,
Department for Business Innovation and Skills,Intellectual Property Office,09/07/2014,Travel and subsistence UK,International Policy Directorate,HRG UK,130336762REV,-212.22,Not applicable,
Department for Business Innovation and Skills,Intellectual Property Office,09/07/2014,Travel and subsistence UK,Business Support Directorate,HRG UK,130616409REV,-212.22,Not applicable,
Department for Business Innovation and Skills,Intellectual Property Office,09/07/2014,Travel and subsistence UK,Patents Directorate,HRG UK,130616558REV,-212.22,Not applicable,
Department for Business Innovation and Skills,Intellectual Property Office,09/07/2014,Travel and subsistence UK,International Policy Directorate,HRG UK,130562772REV,-212.22,Not applicable,
Department for Business Innovation and Skills,Intellectual Property Office,09/07/2014,Travel and subsistence UK,Innovation Directorate,HRG UK,130461624REV,-211.23,Not applicable,
Department for Business Innovation and Skills,Intellectual Property Office,09/07/2014,Travel and subsistence UK,International Policy Directorate,HRG UK,130590247REV,-206.25,Not applicable,
Department for Business Innovation and Skills,Intellectual Property Office,09/07/2014,Travel and subsistence UK,Business Support Directorate,HRG UK,130408652REV,-206.25,Not applicable,
Department for Business Innovation and Skills,Intellectual Property Office,09/07/2014,Travel and subsistence UK,Business Support Directorate,HRG UK,130542210REV,-206.25,Not applicable,
Department for Business Innovation and Skills,Intellectual Property Office,09/07/2014,Travel and subsistence UK,Patents Directorate,HRG UK,130536958REV,-202.74,Not applicable,
Department for Business Innovation and Skills,Intellectual Property Office,09/07/2014,Travel and subsistence UK,Business Support Directorate,HRG UK,130631110REV,-197.26,Not applicable,
Department for Business Innovation and Skills,Intellectual Property Office,09/07/2014,Travel and subsistence UK,Innovation Directorate,HRG UK,130407263,-191.06,Not applicable,
Department for Business Innovation and Skills,Intellectual Property Office,09/07/2014,Travel and subsistence UK,Trade Marks Directorate,HRG UK,130621324,-191.06,Not applicable,
Department for Business Innovation and Skills,Intellectual Property Office,09/07/2014,Travel and subsistence UK,Trade Marks Directorate,HRG UK,130621324INV,-190.87,Not applicable,
Department for Business Innovation and Skills,Intellectual Property Office,09/07/2014,Travel and subsistence UK,Innovation Directorate,HRG UK,130407263INV,-190.87,Not applicable,
Department for Business Innovation and Skills,Intellectual Property Office,09/07/2014,Travel and subsistence UK,Innovation Directorate,HRG UK,130407264,-186.54,Not applicable,
Department for Business Innovation and Skills,Intellectual Property Office,09/07/2014,Travel and subsistence UK,Innovation Directorate,HRG UK,130407264INV,-186.35,Not applicable,
Department for Business Innovation and Skills,Intellectual Property Office,09/07/2014,Travel and subsistence UK,Innovation Directorate,HRG UK,130491723REV,-175.20,Not applicable,
Department for Business Innovation and Skills,Intellectual Property Office,09/07/2014,Travel and subsistence UK,Patents Directorate,HRG UK,130534773REV,-141.30,Not applicable,
Department for Business Innovation and Skills,Intellectual Property Office,09/07/2014,Travel and subsistence UK,Copyright and IP Enforcement Directorate,HRG UK,130462306REV,-132.78,Not applicable,
Department for Business Innovation and Skills,Intellectual Property Office,09/07/2014,Travel and subsistence UK,Copyright and IP Enforcement Directorate,HRG UK,130591460REV,-129.18,Not applicable,
Department for Business Innovation and Skills,Intellectual Property Office,09/07/2014,Travel and subsistence UK,Copyright and IP Enforcement Directorate,HRG UK,130606799REV,-125.58,Not applicable,
Department for Business Innovation and Skills,Intellectual Property Office,09/07/2014,Travel and subsistence UK,Copyright and IP Enforcement Directorate,HRG UK,130344911REV,-124.79,Not applicable,
Department for Business Innovation and Skills,Intellectual Property Office,09/07/2014,Travel and subsistence UK,Copyright and IP Enforcement Directorate,HRG UK,130335996REV,-124.79,Not applicable,
Department for Business Innovation and Skills,Intellectual Property Office,09/07/2014,Travel and subsistence UK,Business Support Directorate,HRG UK,130405673REV,-120.80,Not applicable,
Department for Business Innovation and Skills,Intellectual Property Office,09/07/2014,Travel and subsistence UK,Innovation Directorate,HRG UK,130629226REV,-116.99,Not applicable,
Department for Business Innovation and Skills,Intellectual Property Office,09/07/2014,Travel and subsistence UK,Copyright and IP Enforcement Directorate,HRG UK,130551370REV,-116.99,Not applicable,
Department for Business Innovation and Skills,Intellectual Property Office,09/07/2014,Travel and subsistence UK,Copyright and IP Enforcement Directorate,HRG UK,130551462REV,-116.99,Not applicable,
Department for Business Innovation and Skills,Intellectual Property Office,09/07/2014,Travel and subsistence UK,Copyright and IP Enforcement Directorate,HRG UK,130551242REV,-116.99,Not applicable,
Department for Business Innovation and Skills,Intellectual Property Office,15/07/2014,Travel and subsistence UK,Copyright and IP Enforcement Directorate,Leasedrive Velo Rental Management Ltd,CRD00068933,-116.59,Not applicable,
Department for Business Innovation and Skills,Intellectual Property Office,09/07/2014,Travel and subsistence UK,Copyright and IP Enforcement Directorate,HRG UK,130398390REV,-114.51,Not applicable,
Department for Business Innovation and Skills,Intellectual Property Office,09/07/2014,Travel and subsistence UK,Business Support Directorate,HRG UK,130481553,-113.70,Not applicable,
Department for Business Innovation and Skills,Intellectual Property Office,09/07/2014,Travel and subsistence UK,Business Support Directorate,HRG UK,130481553INV,-113.59,Not applicable,
Department for Business Innovation and Skills,Intellectual Property Office,09/07/2014,Travel and subsistence UK,Copyright and IP Enforcement Directorate,HRG UK,130550763REV,-112.01,Not applicable,
Department for Business Innovation and Skills,Intellectual Property Office,09/07/2014,Travel and subsistence UK,Copyright and IP Enforcement Directorate,HRG UK,130551108REV,-112.01,Not applicable,
Department for Business Innovation and Skills,Intellectual Property Office,09/07/2014,Travel and subsistence UK,Copyright and IP Enforcement Directorate,HRG UK,130551491REV,-112.01,Not applicable,
Department for Business Innovation and Skills,Intellectual Property Office,09/07/2014,Travel and subsistence UK,Copyright and IP Enforcement Directorate,HRG UK,130573176REV,-112.01,Not applicable,
Department for Business Innovation and Skills,Intellectual Property Office,09/07/2014,Travel and subsistence UK,Copyright and IP Enforcement Directorate,HRG UK,130551561REV,-112.01,Not applicable,
Department for Business Innovation and Skills,Intellectual Property Office,09/07/2014,Travel and subsistence UK,Copyright and IP Enforcement Directorate,HRG UK,130606790REV,-109.91,Not applicable,
Department for Business Innovation and Skills,Intellectual Property Office,09/07/2014,Travel and subsistence UK,IMPROVE Project,HRG UK,130335998REV,-109.31,Not applicable,
Department for Business Innovation and Skills,Intellectual Property Office,09/07/2014,Travel and subsistence UK,Business Support Directorate,HRG UK,130336010REV,-109.31,Not applicable,
Department for Business Innovation and Skills,Intellectual Property Office,09/07/2014,Travel and subsistence UK,International Policy Directorate,HRG UK,130627393REV,-109.31,Not applicable,
Department for Business Innovation and Skills,Intellectual Property Office,09/07/2014,Travel and subsistence UK,Business Support Directorate,HRG UK,130405677REV,-109.31,Not applicable,
Department for Business Innovation and Skills,Intellectual Property Office,09/07/2014,Travel and subsistence UK,International Policy Directorate,HRG UK,130534055REV,-109.31,Not applicable,
Department for Business Innovation and Skills,Intellectual Property Office,09/07/2014,Travel and subsistence UK,Copyright and IP Enforcement Directorate,HRG UK,130542208REV,-109.31,Not applicable,
Department for Business Innovation and Skills,Intellectual Property Office,09/07/2014,Travel and subsistence UK,Copyright and IP Enforcement Directorate,HRG UK,130606793REV,-109.31,Not applicable,
Department for Business Innovation and Skills,Intellectual Property Office,09/07/2014,Travel and subsistence UK,Copyright and IP Enforcement Directorate,HRG UK,130380922REV,-109.31,Not applicable,
Department for Business Innovation and Skills,Intellectual Property Office,09/07/2014,Travel and subsistence UK,Copyright and IP Enforcement Directorate,HRG UK,130606805REV,-107.92,Not applicable,
Department for Business Innovation and Skills,Intellectual Property Office,09/07/2014,Travel and subsistence UK,Copyright and IP Enforcement Directorate,HRG UK,130606794REV,-107.92,Not applicable,
Department for Business Innovation and Skills,Intellectual Property Office,09/07/2014,Travel and subsistence UK,Copyright and IP Enforcement Directorate,HRG UK,130351468REV,-107.92,Not applicable,
Department for Business Innovation and Skills,Intellectual Property Office,09/07/2014,Travel and subsistence UK,Innovation Directorate,HRG UK,130398392REV,-107.92,Not applicable,
Department for Business Innovation and Skills,Intellectual Property Office,09/07/2014,Travel and subsistence UK,"People, Property and Services Directorate",HRG UK,130573274REV,-107.92,Not applicable,
"Department for Business, Innovation and Skills",Intellectual Property Office,09/07/2014,Travel and subsistence UK,Copyright and IP Enforcement Directorate,HRG UK,130631925REV,-107.92,Not applicable,
"Department for Business, Innovation and Skills",Intellectual Property Office,09/07/2014,Travel and subsistence UK,Patents Directorate,HRG UK,130560755REV,-107.92,Not applicable,
"Department for Business, Innovation and Skills",Intellectual Property Office,09/07/2014,Travel and subsistence UK,Copyright and IP Enforcement Directorate,HRG UK,130458217REV,-107.92,Not applicable,
"Department for Business, Innovation and Skills",Intellectual Property Office,09/07/2014,Travel and subsistence UK,"People, Property and Services Directorate",HRG UK,130505519REV,-107.92,Not applicable,
"Department for Business, Innovation and Skills",Intellectual Property Office,09/07/2014,Travel and subsistence UK,Copyright and IP Enforcement Directorate,HRG UK,130542207REV,-107.01,Not applicable,
"Department for Business, Innovation and Skills",Intellectual Property Office,09/07/2014,Travel and subsistence UK,International Policy Directorate,HRG UK,130526972REV,-107.01,Not applicable,
"Department for Business, Innovation and Skills",Intellectual Property Office,09/07/2014,Travel and subsistence UK,Innovation Directorate,HRG UK,130473062REV,-107.01,Not applicable,
"Department for Business, Innovation and Skills",Intellectual Property Office,09/07/2014,Travel and subsistence UK,International Policy Directorate,HRG UK,130534054REV,-107.01,Not applicable,
"Department for Business, Innovation and Skills",Intellectual Property Office,09/07/2014,Travel and subsistence UK,International Policy Directorate,HRG UK,130361679REV,-107.01,Not applicable,
"Department for Business, Innovation and Skills",Intellectual Property Office,09/07/2014,Travel and subsistence UK,Copyright and IP Enforcement Directorate,HRG UK,130553132REV,-106.33,Not applicable,
"Department for Business, Innovation and Skills",Intellectual Property Office,09/07/2014,Travel and subsistence UK,Copyright and IP Enforcement Directorate,HRG UK,130564510REV,-106.12,Not applicable,
"Department for Business, Innovation and Skills",Intellectual Property Office,09/07/2014,Travel and subsistence UK,Copyright and IP Enforcement Directorate,HRG UK,130335995REV,-105.40,Not applicable,
"Department for Business, Innovation and Skills",Intellectual Property Office,09/07/2014,Travel and subsistence UK,Patents Directorate,HRG UK,130560951REV,-104.90,Not applicable,
"Department for Business, Innovation and Skills",Intellectual Property Office,09/07/2014,Travel and subsistence UK,Copyright and IP Enforcement Directorate,HRG UK,130614041REV,-104.90,Not applicable,
"Department for Business, Innovation and Skills",Intellectual Property Office,09/07/2014,Travel and subsistence UK,Copyright and IP Enforcement Directorate,HRG UK,130593270REV,-104.32,Not applicable,
"Department for Business, Innovation and Skills",Intellectual Property Office,09/07/2014,Travel and subsistence UK,Copyright and IP Enforcement Directorate,HRG UK,130594439REV,-104.32,Not applicable,
"Department for Business, Innovation and Skills",Intellectual Property Office,09/07/2014,Travel and subsistence UK,Copyright and IP Enforcement Directorate,HRG UK,130401230REV,-104.32,Not applicable,
"Department for Business, Innovation and Skills",Intellectual Property Office,09/07/2014,Travel and subsistence UK,IMPROVE Project,HRG UK,130336002REV,-104.32,Not applicable,
"Department for Business, Innovation and Skills",Intellectual Property Office,09/07/2014,Travel and subsistence UK,Copyright and IP Enforcement Directorate,HRG UK,130564096REV,-104.32,Not applicable,
"Department for Business, Innovation and Skills",Intellectual Property Office,09/07/2014,Travel and subsistence UK,IMPROVE Project,HRG UK,130336004REV,-104.32,Not applicable,
"Department for Business, Innovation and Skills",Intellectual Property Office,09/07/2014,Travel and subsistence UK,Innovation Directorate,HRG UK,130450326REV,-104.32,Not applicable,
"Department for Business, Innovation and Skills",Intellectual Property Office,09/07/2014,Travel and subsistence UK,Innovation Directorate,HRG UK,130351464REV,-104.32,Not applicable,
"Department for Business, Innovation and Skills",Intellectual Property Office,09/07/2014,Travel and subsistence UK,IMPROVE Project,HRG UK,130336000REV,-104.32,Not applicable,
"Department for Business, Innovation and Skills",Intellectual Property Office,09/07/2014,Travel and subsistence UK,Innovation Directorate,HRG UK,130526966REV,-104.32,Not applicable,
"Department for Business, Innovation and Skills",Intellectual Property Office,09/07/2014,Travel and subsistence UK,Copyright and IP Enforcement Directorate,HRG UK,130433958REV,-104.32,Not applicable,
"Department for Business, Innovation and Skills",Intellectual Property Office,09/07/2014,Travel and subsistence UK,Business Support Directorate,HRG UK,130417249REV,-104.32,Not applicable,
"Department for Business, Innovation and Skills",Intellectual Property Office,09/07/2014,Travel and subsistence UK,Trade Marks Directorate,HRG UK,130435968REV,-104.32,Not applicable,
"Department for Business, Innovation and Skills",Intellectual Property Office,09/07/2014,Travel and subsistence UK,Innovation Directorate,HRG UK,130351461REV,-104.32,Not applicable,
"Department for Business, Innovation and Skills",Intellectual Property Office,09/07/2014,Travel and subsistence UK,Copyright and IP Enforcement Directorate,HRG UK,130575232REV,-104.02,Not applicable,
"Department for Business, Innovation and Skills",Intellectual Property Office,09/07/2014,Travel and subsistence UK,Copyright and IP Enforcement Directorate,HRG UK,130400958REV,-103.92,Not applicable,
"Department for Business, Innovation and Skills",Intellectual Property Office,09/07/2014,Travel and subsistence UK,Innovation Directorate,HRG UK,130330516,-103.88,Not applicable,
"Department for Business, Innovation and Skills",Intellectual Property Office,09/07/2014,Travel and subsistence UK,Innovation Directorate,HRG UK,130330516INV,-103.78,Not applicable,
"Department for Business, Innovation and Skills",Intellectual Property Office,09/07/2014,Travel and subsistence UK,International Policy Directorate,HRG UK,130361680REV,-103.42,Not applicable,
"Department for Business, Innovation and Skills",Intellectual Property Office,09/07/2014,Travel and subsistence UK,Copyright and IP Enforcement Directorate,HRG UK,130335994REV,-103.02,Not applicable,
"Department for Business, Innovation and Skills",Intellectual Property Office,09/07/2014,Travel and subsistence UK,Copyright and IP Enforcement Directorate,HRG UK,130335992REV,-103.02,Not applicable,
"Department for Business, Innovation and Skills",Intellectual Property Office,09/07/2014,Travel and subsistence UK,Copyright and IP Enforcement Directorate,HRG UK,130563781REV,-102.02,Not applicable,
"Department for Business, Innovation and Skills",Intellectual Property Office,09/07/2014,Travel and subsistence UK,Copyright and IP Enforcement Directorate,HRG UK,130398400REV,-102.02,Not applicable,
"Department for Business, Innovation and Skills",Intellectual Property Office,09/07/2014,Travel and subsistence UK,International Policy Directorate,HRG UK,130336011REV,-102.02,Not applicable,
"Department for Business, Innovation and Skills",Intellectual Property Office,09/07/2014,Travel and subsistence UK,Copyright and IP Enforcement Directorate,HRG UK,130398405REV,-102.02,Not applicable,
"Department for Business, Innovation and Skills",Intellectual Property Office,09/07/2014,Travel and subsistence UK,Copyright and IP Enforcement Directorate,HRG UK,130574979REV,-102.02,Not applicable,
"Department for Business, Innovation and Skills",Intellectual Property Office,09/07/2014,Travel and subsistence UK,Copyright and IP Enforcement Directorate,HRG UK,130398403REV,-102.02,Not applicable,
"Department for Business, Innovation and Skills",Intellectual Property Office,09/07/2014,Travel and subsistence UK,Innovation Directorate,HRG UK,130450325REV,-102.02,Not applicable,
"Department for Business, Innovation and Skills",Intellectual Property Office,09/07/2014,Travel and subsistence UK,International Policy Directorate,HRG UK,130412017REV,-102.02,Not applicable,
"Department for Business, Innovation and Skills",Intellectual Property Office,09/07/2014,Travel and subsistence UK,Copyright and IP Enforcement Directorate,HRG UK,130387402REV,-101.41,Not applicable,
"Department for Business, Innovation and Skills",Intellectual Property Office,09/07/2014,Travel and subsistence UK,Copyright and IP Enforcement Directorate,HRG UK,130398397REV,-101.32,Not applicable,
"Department for Business, Innovation and Skills",Intellectual Property Office,09/07/2014,Travel and subsistence UK,Copyright and IP Enforcement Directorate,HRG UK,130415948REV,-101.32,Not applicable,
"Department for Business, Innovation and Skills",Intellectual Property Office,09/07/2014,Travel and subsistence UK,Innovation Directorate,HRG UK,130504401REV,-101.32,Not applicable,
"Department for Business, Innovation and Skills",Intellectual Property Office,09/07/2014,Travel and subsistence UK,Innovation Directorate,HRG UK,130462793REV,-101.32,Not applicable,
"Department for Business, Innovation and Skills",Intellectual Property Office,09/07/2014,Travel and subsistence UK,Copyright and IP Enforcement Directorate,HRG UK,130613746REV,-101.32,Not applicable,
"Department for Business, Innovation and Skills",Intellectual Property Office,09/07/2014,Travel and subsistence UK,Innovation Directorate,HRG UK,130462872REV,-101.32,Not applicable,
"Department for Business, Innovation and Skills",Intellectual Property Office,09/07/2014,Travel and subsistence UK,Copyright and IP Enforcement Directorate,HRG UK,130450320REV,-101.03,Not applicable,
"Department for Business, Innovation and Skills",Intellectual Property Office,09/07/2014,Travel and subsistence UK,Copyright and IP Enforcement Directorate,HRG UK,130606797REV,-100.43,Not applicable,
"Department for Business, Innovation and Skills",Intellectual Property Office,09/07/2014,Travel and subsistence UK,Copyright and IP Enforcement Directorate,HRG UK,130542204REV,-99.93,Not applicable,
"Department for Business, Innovation and Skills",Intellectual Property Office,09/07/2014,Travel and subsistence UK,International Policy Directorate,HRG UK,130560019REV,-99.93,Not applicable,
"Department for Business, Innovation and Skills",Intellectual Property Office,09/07/2014,Travel and subsistence UK,Copyright and IP Enforcement Directorate,HRG UK,130455190REV,-99.93,Not applicable,
"Department for Business, Innovation and Skills",Intellectual Property Office,09/07/2014,Travel and subsistence UK,Patents Directorate,HRG UK,130398399REV,-99.33,Not applicable,
"Department for Business, Innovation and Skills",Intellectual Property Office,09/07/2014,Travel and subsistence UK,"People, Property and Services Directorate",HRG UK,130499015REV,-98.44,Not applicable,
"Department for Business, Innovation and Skills",Intellectual Property Office,09/07/2014,Travel and subsistence UK,Business Support Directorate,HRG UK,130498992REV,-98.44,Not applicable,
"Department for Business, Innovation and Skills",Intellectual Property Office,09/07/2014,Travel and subsistence UK,Business Support Directorate,HRG UK,130498996REV,-98.44,Not applicable,
"Department for Business, Innovation and Skills",Intellectual Property Office,09/07/2014,Travel and subsistence UK,Copyright and IP Enforcement Directorate,HRG UK,130434016REV,-98.44,Not applicable,
"Department for Business, Innovation and Skills",Intellectual Property Office,09/07/2014,Travel and subsistence UK,Copyright and IP Enforcement Directorate,HRG UK,130434095REV,-98.44,Not applicable,
"Department for Business, Innovation and Skills",Intellectual Property Office,09/07/2014,Travel and subsistence UK,Copyright and IP Enforcement Directorate,HRG UK,130526975REV,-98.42,Not applicable,
Department for Business Innovation and Skills,Intellectual Property Office,09/07/2014,Travel and subsistence UK,Central Support,HRG UK,130354759REV,-98.42,Not applicable,
Department for Business Innovation and Skills,Intellectual Property Office,09/07/2014,Travel and subsistence UK,Innovation Directorate,HRG UK,130405678REV,-97.53,Not applicable,
Department for Business Innovation and Skills,Intellectual Property Office,09/07/2014,Travel and subsistence UK,Copyright and IP Enforcement Directorate,HRG UK,130335993REV,-96.54,Not applicable,
Department for Business Innovation and Skills,Intellectual Property Office,09/07/2014,Travel and subsistence UK,Copyright and IP Enforcement Directorate,HRG UK,130551296REV,-96.03,Not applicable,
Department for Business Innovation and Skills,Intellectual Property Office,09/07/2014,Travel and subsistence UK,Innovation Directorate,HRG UK,130534147REV,-93.93,Not applicable,
Department for Business Innovation and Skills,Intellectual Property Office,09/07/2014,Travel and subsistence UK,Copyright and IP Enforcement Directorate,HRG UK,130380919REV,-93.93,Not applicable,
Department for Business Innovation and Skills,Intellectual Property Office,09/07/2014,Travel and subsistence UK,International Policy Directorate,HRG UK,130583605REV,-93.93,Not applicable,
Department for Business Innovation and Skills,Intellectual Property Office,09/07/2014,Travel and subsistence UK,International Policy Directorate,HRG UK,130466776REV,-93.93,Not applicable,
Department for Business Innovation and Skills,Intellectual Property Office,09/07/2014,Travel and subsistence UK,Trade Marks Directorate,HRG UK,130616059REV,-93.42,Not applicable,
Department for Business Innovation and Skills,Intellectual Property Office,09/07/2014,Travel and subsistence UK,International Policy Directorate,HRG UK,130457589REV,-93.42,Not applicable,
Department for Business Innovation and Skills,Intellectual Property Office,09/07/2014,Travel and subsistence UK,International Policy Directorate,HRG UK,130483234REV,-93.42,Not applicable,
Department for Business Innovation and Skills,Intellectual Property Office,09/07/2014,Travel and subsistence UK,Trade Marks Directorate,HRG UK,130606789REV,-93.42,Not applicable,
Department for Business Innovation and Skills,Intellectual Property Office,09/07/2014,Travel and subsistence UK,Copyright and IP Enforcement Directorate,HRG UK,130525060REV,-91.93,Not applicable,
Department for Business Innovation and Skills,Intellectual Property Office,09/07/2014,Travel and subsistence UK,Patents Directorate,HRG UK,130486650REV,-91.93,Not applicable,
Department for Business Innovation and Skills,Intellectual Property Office,09/07/2014,Travel and subsistence UK,Trade Marks Directorate,HRG UK,130503572REV,-91.93,Not applicable,
Department for Business Innovation and Skills,Intellectual Property Office,09/07/2014,Travel and subsistence UK,Trade Marks Directorate,HRG UK,130525062REV,-91.93,Not applicable,
Department for Business Innovation and Skills,Intellectual Property Office,09/07/2014,Travel and subsistence UK,Patents Directorate,HRG UK,130606801REV,-90.64,Not applicable,
Department for Business Innovation and Skills,Intellectual Property Office,09/07/2014,Travel and subsistence UK,Copyright and IP Enforcement Directorate,HRG UK,130380921REV,-89.23,Not applicable,
Department for Business Innovation and Skills,Intellectual Property Office,09/07/2014,Travel and subsistence UK,Innovation Directorate,HRG UK,130405680REV,-89.23,Not applicable,
Department for Business Innovation and Skills,Intellectual Property Office,09/07/2014,Travel and subsistence UK,Patents Directorate,HRG UK,130473794,-89.12,Not applicable,
Department for Business Innovation and Skills,Intellectual Property Office,09/07/2014,Travel and subsistence UK,Finance Directorate,HRG UK,130473892,-89.10,Not applicable,
Department for Business Innovation and Skills,Intellectual Property Office,09/07/2014,Travel and subsistence UK,Patents Directorate,HRG UK,130473794INV,-89.03,Not applicable,
Department for Business Innovation and Skills,Intellectual Property Office,09/07/2014,Travel and subsistence UK,Finance Directorate,HRG UK,130473892INV,-89.01,Not applicable,
Department for Business Innovation and Skills,Intellectual Property Office,09/07/2014,Travel and subsistence UK,Business Support Directorate,HRG UK,130499576REV,-88.94,Not applicable,
Department for Business Innovation and Skills,Intellectual Property Office,09/07/2014,Travel and subsistence UK,Innovation Directorate,HRG UK,130371556,-88.92,Not applicable,
Department for Business Innovation and Skills,Intellectual Property Office,09/07/2014,Travel and subsistence UK,Innovation Directorate,HRG UK,130371556INV,-88.83,Not applicable,
"Department for Business, Innovation and Skills",Intellectual Property Office,09/07/2014,Travel and subsistence UK,Innovation Directorate,HRG UK,130371555,-88.04,Not applicable,
"Department for Business, Innovation and Skills",Intellectual Property Office,09/07/2014,Travel and subsistence UK,Innovation Directorate,HRG UK,130371555INV,-87.95,Not applicable,
"Department for Business, Innovation and Skills",Intellectual Property Office,09/07/2014,Travel and subsistence UK,Business Support Directorate,HRG UK,130344510REV,-87.44,Not applicable,
Department for Business Innovation and Skills,Intellectual Property Office,09/07/2014,Travel and subsistence UK,International Policy Directorate,HRG UK,130432102REV,-87.44,Not applicable,
Department for Business Innovation and Skills,Intellectual Property Office,09/07/2014,Travel and subsistence UK,Copyright and IP Enforcement Directorate,HRG UK,130387401REV,-87.44,Not applicable,
"Department for Business, Innovation and Skills",Intellectual Property Office,09/07/2014,Travel and subsistence UK,International Policy Directorate,HRG UK,130538973REV,-87.44,Not applicable,
Department for Business Innovation and Skills,Intellectual Property Office,09/07/2014,Travel and subsistence UK,International Policy Directorate,HRG UK,130335991REV,-87.44,Not applicable,
"Department for Business, Innovation and Skills",Intellectual Property Office,09/07/2014,Travel and subsistence UK,Innovation Directorate,HRG UK,130351459REV,-86.56,Not applicable,
"Department for Business, Innovation and Skills",Intellectual Property Office,09/07/2014,Travel and subsistence UK,Copyright and IP Enforcement Directorate,HRG UK,130434553REV,-85.05,Not applicable,
"Department for Business, Innovation and Skills",Intellectual Property Office,09/07/2014,Travel and subsistence UK,Copyright and IP Enforcement Directorate,HRG UK,130598175,-84.71,Not applicable,
"Department for Business, Innovation and Skills",Intellectual Property Office,09/07/2014,Travel and subsistence UK,Copyright and IP Enforcement Directorate,HRG UK,130598173,-84.71,Not applicable,
"Department for Business, Innovation and Skills",Intellectual Property Office,09/07/2014,Travel and subsistence UK,Copyright and IP Enforcement Directorate,HRG UK,130598173INV,-84.63,Not applicable,
"Department for Business, Innovation and Skills",Intellectual Property Office,09/07/2014,Travel and subsistence UK,Copyright and IP Enforcement Directorate,HRG UK,130598175INV,-84.63,Not applicable,
"Department for Business, Innovation and Skills",Intellectual Property Office,09/07/2014,Travel and subsistence UK,Copyright and IP Enforcement Directorate,HRG UK,130614802REV,-84.24,Not applicable,
"Department for Business, Innovation and Skills",Intellectual Property Office,09/07/2014,Travel and subsistence UK,Innovation Directorate,HRG UK,130636282REV,-84.24,Not applicable,
"Department for Business, Innovation and Skills",Intellectual Property Office,09/07/2014,Travel and subsistence UK,Innovation Directorate,HRG UK,130351463REV,-84.24,Not applicable,
"Department for Business, Innovation and Skills",Intellectual Property Office,09/07/2014,Travel and subsistence UK,Innovation Directorate,HRG UK,130351460REV,-84.24,Not applicable,
Department for Business Innovation and Skills,Intellectual Property Office,09/07/2014,Travel and subsistence UK,Copyright and IP Enforcement Directorate,HRG UK,130401229REV,-84.24,Not applicable,
Department for Business Innovation and Skills,Intellectual Property Office,09/07/2014,Travel and subsistence UK,International Policy Directorate,HRG UK,130336007REV,-84.24,Not applicable,
Department for Business Innovation and Skills,Intellectual Property Office,09/07/2014,Travel and subsistence UK,Copyright and IP Enforcement Directorate,HRG UK,130473928,-84.21,Not applicable,
Department for Business Innovation and Skills,Intellectual Property Office,09/07/2014,Travel and subsistence UK,Copyright and IP Enforcement Directorate,HRG UK,130473928INV,-84.13,Not applicable,
Department for Business Innovation and Skills,Intellectual Property Office,09/07/2014,Travel and subsistence UK,Innovation Directorate,HRG UK,130614808REV,-83.86,Not applicable,
Department for Business Innovation and Skills,Intellectual Property Office,09/07/2014,Travel and subsistence UK,Innovation Directorate,HRG UK,130371557,-83.13,Not applicable,
Department for Business Innovation and Skills,Intellectual Property Office,09/07/2014,Travel and subsistence UK,Innovation Directorate,HRG UK,130371553,-83.13,Not applicable,
Department for Business Innovation and Skills,Intellectual Property Office,09/07/2014,Travel and subsistence UK,Innovation Directorate,HRG UK,130371557INV,-83.05,Not applicable,
"Department for Business, Innovation and Skills",Intellectual Property Office,09/07/2014,Travel and subsistence UK,Innovation Directorate,HRG UK,130371553INV,-83.05,Not applicable,
"Department for Business, Innovation and Skills",Intellectual Property Office,09/07/2014,Travel and subsistence UK,Trade Marks Directorate,HRG UK,130503798REV,-82.66,Not applicable,
Department for Business Innovation and Skills,Intellectual Property Office,09/07/2014,Travel and subsistence UK,International Policy Directorate,HRG UK,130500161REV,-81.25,Not applicable,
Department for Business Innovation and Skills,Intellectual Property Office,09/07/2014,Travel and subsistence UK,International Policy Directorate,HRG UK,130461604REV,-81.25,Not applicable,
"Department for Business, Innovation and Skills",Intellectual Property Office,09/07/2014,Travel and subsistence UK,Innovation Directorate,HRG UK,130351458REV,-81.06,Not applicable,
"Department for Business, Innovation and Skills",Intellectual Property Office,09/07/2014,Travel and subsistence UK,International Policy Directorate,HRG UK,130564211REV,-80.66,Not applicable,
"Department for Business, Innovation and Skills",Intellectual Property Office,09/07/2014,Travel and subsistence UK,Copyright and IP Enforcement Directorate,HRG UK,130398389REV,-80.57,Not applicable,
"Department for Business, Innovation and Skills",Intellectual Property Office,09/07/2014,Travel and subsistence UK,Copyright and IP Enforcement Directorate,HRG UK,130398388REV,-80.57,Not applicable,
"Department for Business, Innovation and Skills",Intellectual Property Office,09/07/2014,Travel and subsistence UK,Innovation Directorate,HRG UK,130330515,-80.05,Not applicable,
"Department for Business, Innovation and Skills",Intellectual Property Office,09/07/2014,Travel and subsistence UK,Innovation Directorate,HRG UK,130330515INV,-79.97,Not applicable,
"Department for Business, Innovation and Skills",Intellectual Property Office,09/07/2014,Travel and subsistence UK,Patents Directorate,HRG UK,130547144REV,-79.05,Not applicable,
"Department for Business, Innovation and Skills",Intellectual Property Office,09/07/2014,Travel and subsistence UK,Patents Directorate,HRG UK,130561106REV,-78.46,Not applicable,
Department for Business Innovation and Skills,Intellectual Property Office,09/07/2014,Travel and subsistence UK,Business Support Directorate,HRG UK,130361232REV,-78.46,Not applicable,
Department for Business Innovation and Skills,Intellectual Property Office,09/07/2014,Travel and subsistence UK,Copyright and IP Enforcement Directorate,HRG UK,130577684,-76.17,Not applicable,
Department for Business Innovation and Skills,Intellectual Property Office,09/07/2014,Travel and subsistence UK,Central Support,HRG UK,130537985,-76.17,Not applicable,
Department for Business Innovation and Skills,Intellectual Property Office,09/07/2014,Travel and subsistence UK,Central Support,HRG UK,130537985INV,-76.09,Not applicable,
Department for Business Innovation and Skills,Intellectual Property Office,09/07/2014,Travel and subsistence UK,Copyright and IP Enforcement Directorate,HRG UK,130577684INV,-76.09,Not applicable,
"Department for Business, Innovation and Skills",Intellectual Property Office,09/07/2014,Travel and subsistence UK,Copyright and IP Enforcement Directorate,HRG UK,130574670REV,-76.07,Not applicable,
"Department for Business, Innovation and Skills",Intellectual Property Office,09/07/2014,Travel and subsistence UK,Copyright and IP Enforcement Directorate,HRG UK,130361678REV,-75.97,Not applicable,
"Department for Business, Innovation and Skills",Intellectual Property Office,09/07/2014,Travel and subsistence UK,Copyright and IP Enforcement Directorate,HRG UK,130407270,-75.03,Not applicable,
"Department for Business, Innovation and Skills",Intellectual Property Office,09/07/2014,Travel and subsistence UK,Copyright and IP Enforcement Directorate,HRG UK,130407270INV,-74.96,Not applicable,
"Department for Business, Innovation and Skills",Intellectual Property Office,09/07/2014,Travel and subsistence UK,Copyright and IP Enforcement Directorate,HRG UK,130361318REV,-71.68,Not applicable,
"Department for Business, Innovation and Skills",Intellectual Property Office,09/07/2014,Travel and subsistence UK,Copyright and IP Enforcement Directorate,HRG UK,130505590REV,-71.68,Not applicable,
"Department for Business, Innovation and Skills",Intellectual Property Office,09/07/2014,Travel and subsistence UK,International Policy Directorate,HRG UK,130477820REV,-70.46,Not applicable,
"Department for Business, Innovation and Skills",Intellectual Property Office,09/07/2014,Travel and subsistence UK,International Policy Directorate,HRG UK,130477894REV,-70.46,Not applicable,
"Department for Business, Innovation and Skills",Intellectual Property Office,09/07/2014,Travel and subsistence UK,Innovation Directorate,HRG UK,130398385REV,-68.68,Not applicable,
"Department for Business, Innovation and Skills",Intellectual Property Office,09/07/2014,Travel and subsistence UK,International Policy Directorate,HRG UK,130636613REV,-68.47,Not applicable,
"Department for Business, Innovation and Skills",Intellectual Property Office,09/07/2014,Travel and subsistence UK,International Policy Directorate,HRG UK,130615644REV,-68.47,Not applicable,
"Department for Business, Innovation and Skills",Intellectual Property Office,09/07/2014,Travel and subsistence UK,Innovation Directorate,HRG UK,130525063REV,-68.18,Not applicable,
"Department for Business, Innovation and Skills",Intellectual Property Office,09/07/2014,Travel and subsistence UK,Innovation Directorate,HRG UK,130526964REV,-68.18,Not applicable,
"Department for Business, Innovation and Skills",Intellectual Property Office,09/07/2014,Travel and subsistence UK,Copyright and IP Enforcement Directorate,HRG UK,130351467REV,-67.08,Not applicable,
"Department for Business, Innovation and Skills",Intellectual Property Office,09/07/2014,Travel and subsistence UK,International Policy Directorate,HRG UK,130341550REV,-67.08,Not applicable,
"Department for Business, Innovation and Skills",Intellectual Property Office,09/07/2014,Travel and subsistence UK,Innovation Directorate,HRG UK,130416370REV,-66.10,Not applicable,
"Department for Business, Innovation and Skills",Intellectual Property Office,09/07/2014,Travel and subsistence UK,Copyright and IP Enforcement Directorate,HRG UK,130462305REV,-65.49,Not applicable,
"Department for Business, Innovation and Skills",Intellectual Property Office,09/07/2014,Travel and subsistence UK,Copyright and IP Enforcement Directorate,HRG UK,130458833REV,-64.58,Not applicable,
"Department for Business, Innovation and Skills",Intellectual Property Office,09/07/2014,Travel and subsistence UK,Copyright and IP Enforcement Directorate,HRG UK,130346385REV,-64.58,Not applicable,
"Department for Business, Innovation and Skills",Intellectual Property Office,09/07/2014,Travel and subsistence UK,Copyright and IP Enforcement Directorate,HRG UK,130491504REV,-64.58,Not applicable,
"Department for Business, Innovation and Skills",Intellectual Property Office,09/07/2014,Travel and subsistence UK,Innovation Directorate,HRG UK,130462792REV,-64.07,Not applicable,
"Department for Business, Innovation and Skills",Intellectual Property Office,09/07/2014,Travel and subsistence UK,Innovation Directorate,HRG UK,130462871REV,-64.07,Not applicable,
"Department for Business, Innovation and Skills",Intellectual Property Office,09/07/2014,Travel and subsistence UK,International Policy Directorate,HRG UK,130490778REV,-64.07,Not applicable,
"Department for Business, Innovation and Skills",Intellectual Property Office,09/07/2014,Travel and subsistence UK,Copyright and IP Enforcement Directorate,HRG UK,130542205REV,-64.07,Not applicable,
"Department for Business, Innovation and Skills",Intellectual Property Office,09/07/2014,Travel and subsistence UK,Innovation Directorate,HRG UK,130504579REV,-64.07,Not applicable,
"Department for Business, Innovation and Skills",Intellectual Property Office,09/07/2014,Travel and subsistence UK,International Policy Directorate,HRG UK,130336008REV,-63.49,Not applicable,
"Department for Business, Innovation and Skills",Intellectual Property Office,09/07/2014,Travel and subsistence UK,Innovation Directorate,HRG UK,130336005REV,-63.48,Not applicable,
"Department for Business, Innovation and Skills",Intellectual Property Office,09/07/2014,Travel and subsistence UK,Copyright and IP Enforcement Directorate,HRG UK,130606798REV,-63.17,Not applicable,
"Department for Business, Innovation and Skills",Intellectual Property Office,09/07/2014,Travel and subsistence UK,Innovation Directorate,HRG UK,130614806REV,-61.59,Not applicable,
"Department for Business, Innovation and Skills",Intellectual Property Office,09/07/2014,Travel and subsistence UK,Copyright and IP Enforcement Directorate,HRG UK,130573177REV,-60.58,Not applicable,
"Department for Business, Innovation and Skills",Intellectual Property Office,09/07/2014,Travel and subsistence UK,Copyright and IP Enforcement Directorate,HRG UK,130606792REV,-60.49,Not applicable,
"Department for Business, Innovation and Skills",Intellectual Property Office,09/07/2014,Travel and subsistence UK,International Policy Directorate,HRG UK,130343596REV,-60.49,Not applicable,
"Department for Business, Innovation and Skills",Intellectual Property Office,09/07/2014,Travel and subsistence UK,Copyright and IP Enforcement Directorate,HRG UK,130344910REV,-59.60,Not applicable,
"Department for Business, Innovation and Skills",Intellectual Property Office,09/07/2014,Travel and subsistence UK,Copyright and IP Enforcement Directorate,HRG UK,130591461REV,-59.60,Not applicable,
Department for Business Innovation and Skills,Intellectual Property Office,09/07/2014,Travel and subsistence UK,Copyright and IP Enforcement Directorate,HRG UK,130553131REV,-57.50,Not applicable,
Department for Business Innovation and Skills,Intellectual Property Office,09/07/2014,Travel and subsistence UK,Copyright and IP Enforcement Directorate,HRG UK,130380924REV,-57.50,Not applicable,
Department for Business Innovation and Skills,Intellectual Property Office,09/07/2014,Travel and subsistence UK,Copyright and IP Enforcement Directorate,HRG UK,130380923REV,-57.50,Not applicable,
Department for Business Innovation and Skills,Intellectual Property Office,09/07/2014,Travel and subsistence UK,Copyright and IP Enforcement Directorate,HRG UK,130551371REV,-56.91,Not applicable,
Department for Business Innovation and Skills,Intellectual Property Office,09/07/2014,Travel and subsistence UK,Innovation Directorate,HRG UK,130629227REV,-56.91,Not applicable,
Department for Business Innovation and Skills,Intellectual Property Office,09/07/2014,Travel and subsistence UK,Copyright and IP Enforcement Directorate,HRG UK,130551243REV,-56.91,Not applicable,
Department for Business Innovation and Skills,Intellectual Property Office,09/07/2014,Travel and subsistence UK,Copyright and IP Enforcement Directorate,HRG UK,130551463REV,-56.91,Not applicable,
Department for Business Innovation and Skills,Intellectual Property Office,09/07/2014,Travel and subsistence UK,Innovation Directorate,HRG UK,130473063REV,-56.91,Not applicable,
Department for Business Innovation and Skills,Intellectual Property Office,09/07/2014,Travel and subsistence UK,Trade Marks Directorate,HRG UK,130526970REV,-56.49,Not applicable,
Department for Business Innovation and Skills,Intellectual Property Office,09/07/2014,Travel and subsistence UK,Business Support Directorate,HRG UK,130498991REV,-56.49,Not applicable,
Department for Business Innovation and Skills,Intellectual Property Office,09/07/2014,Travel and subsistence UK,Business Support Directorate,HRG UK,130498995REV,-56.49,Not applicable,
Department for Business Innovation and Skills,Intellectual Property Office,09/07/2014,Travel and subsistence UK,Trade Marks Directorate,HRG UK,130405674REV,-56.49,Not applicable,
Department for Business Innovation and Skills,Intellectual Property Office,09/07/2014,Travel and subsistence UK,"People, Property and Services Directorate",HRG UK,130499014REV,-56.49,Not applicable,
Department for Business Innovation and Skills,Intellectual Property Office,09/07/2014,Travel and subsistence UK,Copyright and IP Enforcement Directorate,HRG UK,130515226REV,-56.49,Not applicable,
Department for Business Innovation and Skills,Intellectual Property Office,09/07/2014,Travel and subsistence UK,Trade Marks Directorate,HRG UK,130435967REV,-56.49,Not applicable,
Department for Business Innovation and Skills,Intellectual Property Office,09/07/2014,Travel and subsistence UK,Copyright and IP Enforcement Directorate,HRG UK,130631924REV,-56.49,Not applicable,
Department for Business Innovation and Skills,Intellectual Property Office,09/07/2014,Travel and subsistence UK,Innovation Directorate,HRG UK,130405679REV,-55.10,Not applicable,
Department for Business Innovation and Skills,Intellectual Property Office,09/07/2014,Travel and subsistence UK,Copyright and IP Enforcement Directorate,HRG UK,130398391REV,-53.91,Not applicable,
Department for Business Innovation and Skills,Intellectual Property Office,09/07/2014,Travel and subsistence UK,Copyright and IP Enforcement Directorate,HRG UK,130606791REV,-53.91,Not applicable,
Department for Business Innovation and Skills,Intellectual Property Office,09/07/2014,Travel and subsistence UK,Copyright and IP Enforcement Directorate,HRG UK,130361483REV,-53.69,Not applicable,
Department for Business Innovation and Skills,Intellectual Property Office,09/07/2014,Travel and subsistence UK,International Policy Directorate,HRG UK,130627392REV,-53.69,Not applicable,
Department for Business Innovation and Skills,Intellectual Property Office,09/07/2014,Travel and subsistence UK,International Policy Directorate,HRG UK,130596931REV,-53.50,Not applicable,
Department for Business Innovation and Skills,Intellectual Property Office,09/07/2014,Travel and subsistence UK,Copyright and IP Enforcement Directorate,HRG UK,130564007REV,-53.50,Not applicable,
Department for Business Innovation and Skills,Intellectual Property Office,09/07/2014,Travel and subsistence UK,Copyright and IP Enforcement Directorate,HRG UK,130415947REV,-53.50,Not applicable,
Department for Business Innovation and Skills,Intellectual Property Office,09/07/2014,Travel and subsistence UK,Business Support Directorate,HRG UK,130501671REV,-53.10,Not applicable,
Department for Business Innovation and Skills,Intellectual Property Office,09/07/2014,Travel and subsistence UK,Copyright and IP Enforcement Directorate,HRG UK,130398406REV,-52.90,Not applicable,
Department for Business Innovation and Skills,Intellectual Property Office,09/07/2014,Travel and subsistence UK,Trade Marks Directorate,HRG UK,130405675REV,-52.90,Not applicable,
Department for Business Innovation and Skills,Intellectual Property Office,09/07/2014,Travel and subsistence UK,Innovation Directorate,HRG UK,130636283REV,-52.90,Not applicable,
Department for Business Innovation and Skills,Intellectual Property Office,09/07/2014,Travel and subsistence UK,Copyright and IP Enforcement Directorate,HRG UK,130398402REV,-52.90,Not applicable,
Department for Business Innovation and Skills,Intellectual Property Office,09/07/2014,Travel and subsistence UK,Copyright and IP Enforcement Directorate,HRG UK,130551109REV,-52.90,Not applicable,
Department for Business Innovation and Skills,Intellectual Property Office,09/07/2014,Travel and subsistence UK,Copyright and IP Enforcement Directorate,HRG UK,130398404REV,-52.90,Not applicable,
Department for Business Innovation and Skills,Intellectual Property Office,09/07/2014,Travel and subsistence UK,Copyright and IP Enforcement Directorate,HRG UK,130551562REV,-52.90,Not applicable,
Department for Business Innovation and Skills,Intellectual Property Office,09/07/2014,Travel and subsistence UK,International Policy Directorate,HRG UK,130341553REV,-52.90,Not applicable,
Department for Business Innovation and Skills,Intellectual Property Office,09/07/2014,Travel and subsistence UK,International Policy Directorate,HRG UK,130412018REV,-52.90,Not applicable,
Department for Business Innovation and Skills,Intellectual Property Office,09/07/2014,Travel and subsistence UK,Copyright and IP Enforcement Directorate,HRG UK,130515227REV,-52.90,Not applicable,
Department for Business Innovation and Skills,Intellectual Property Office,09/07/2014,Travel and subsistence UK,Copyright and IP Enforcement Directorate,HRG UK,130551492REV,-52.90,Not applicable,
Department for Business Innovation and Skills,Intellectual Property Office,09/07/2014,Travel and subsistence UK,Patents Directorate,HRG UK,130560756REV,-52.90,Not applicable,
Department for Business Innovation and Skills,Intellectual Property Office,09/07/2014,Travel and subsistence UK,Innovation Directorate,HRG UK,130398393REV,-52.90,Not applicable,
Department for Business Innovation and Skills,Intellectual Property Office,09/07/2014,Travel and subsistence UK,Copyright and IP Enforcement Directorate,HRG UK,130458218REV,-52.90,Not applicable,
Department for Business Innovation and Skills,Intellectual Property Office,09/07/2014,Travel and subsistence UK,Copyright and IP Enforcement Directorate,HRG UK,130550764REV,-52.90,Not applicable,
Department for Business Innovation and Skills,Intellectual Property Office,09/07/2014,Travel and subsistence UK,Innovation Directorate,HRG UK,130491640REV,-52.51,Not applicable,
Department for Business Innovation and Skills,Intellectual Property Office,09/07/2014,Travel and subsistence UK,Innovation Directorate,HRG UK,130450323REV,-52.51,Not applicable,
Department for Business Innovation and Skills,Intellectual Property Office,09/07/2014,Travel and subsistence UK,Patents Directorate,HRG UK,130606802REV,-52.11,Not applicable,
Department for Business Innovation and Skills,Intellectual Property Office,09/07/2014,Travel and subsistence UK,International Policy Directorate,HRG UK,130591552REV,-52.00,Not applicable,
Department for Business Innovation and Skills,Intellectual Property Office,09/07/2014,Travel and subsistence UK,Business Support Directorate,HRG UK,130405672REV,-51.51,Not applicable,
Department for Business Innovation and Skills,Intellectual Property Office,09/07/2014,Travel and subsistence UK,International Policy Directorate,HRG UK,130564210REV,-50.91,Not applicable,
Department for Business Innovation and Skills,Intellectual Property Office,09/07/2014,Travel and subsistence UK,"People, Property and Services Directorate",HRG UK,130564168REV,-50.91,Not applicable,
Department for Business Innovation and Skills,Intellectual Property Office,09/07/2014,Travel and subsistence UK,Copyright and IP Enforcement Directorate,HRG UK,130564095REV,-50.91,Not applicable,
"Department for Business, Innovation and Skills",Intellectual Property Office,09/07/2014,Travel and subsistence UK,Innovation Directorate,HRG UK,130405681REV,-50.71,Not applicable,
"Department for Business, Innovation and Skills",Intellectual Property Office,09/07/2014,Travel and subsistence UK,Copyright and IP Enforcement Directorate,HRG UK,130606796REV,-50.70,Not applicable,
"Department for Business, Innovation and Skills",Intellectual Property Office,09/07/2014,Travel and subsistence UK,IMPROVE Project,HRG UK,130335997REV,-50.02,Not applicable,
"Department for Business, Innovation and Skills",Intellectual Property Office,09/07/2014,Travel and subsistence UK,Patents Directorate,HRG UK,130560952REV,-49.92,Not applicable,
"Department for Business, Innovation and Skills",Intellectual Property Office,09/07/2014,Travel and subsistence UK,Business Support Directorate,HRG UK,130417248REV,-49.62,Not applicable,
"Department for Business, Innovation and Skills",Intellectual Property Office,09/07/2014,Travel and subsistence UK,Business Support Directorate,HRG UK,130561463REV,-49.51,Not applicable,
"Department for Business, Innovation and Skills",Intellectual Property Office,09/07/2014,Travel and subsistence UK,Copyright and IP Enforcement Directorate,HRG UK,130594438REV,-49.10,Not applicable,
"Department for Business, Innovation and Skills",Intellectual Property Office,09/07/2014,Travel and subsistence UK,Patents Directorate,HRG UK,130398398REV,-48.50,Not applicable,
"Department for Business, Innovation and Skills",Intellectual Property Office,09/07/2014,Travel and subsistence UK,Business Support Directorate,HRG UK,130405676REV,-48.50,Not applicable,
Department for Business Innovation and Skills,Intellectual Property Office,09/07/2014,Travel and subsistence UK,International Policy Directorate,HRG UK,130592840REV,-47.91,Not applicable,
Department for Business Innovation and Skills,Intellectual Property Office,09/07/2014,Travel and subsistence UK,Innovation Directorate,HRG UK,130504400REV,-47.91,Not applicable,
Department for Business Innovation and Skills,Intellectual Property Office,09/07/2014,Travel and subsistence UK,International Policy Directorate,HRG UK,130438232REV,-47.91,Not applicable,
Department for Business Innovation and Skills,Intellectual Property Office,09/07/2014,Travel and subsistence UK,Copyright and IP Enforcement Directorate,HRG UK,130526967REV,-47.91,Not applicable,
Department for Business Innovation and Skills,Intellectual Property Office,09/07/2014,Travel and subsistence UK,Copyright and IP Enforcement Directorate,HRG UK,130505591REV,-47.91,Not applicable,
Department for Business Innovation and Skills,Intellectual Property Office,09/07/2014,Travel and subsistence UK,Copyright and IP Enforcement Directorate,HRG UK,130491506REV,-47.91,Not applicable,
Department for Business Innovation and Skills,Intellectual Property Office,09/07/2014,Travel and subsistence UK,Copyright and IP Enforcement Directorate,HRG UK,130416448REV,-47.73,Not applicable,
Department for Business Innovation and Skills,Intellectual Property Office,09/07/2014,Travel and subsistence UK,Copyright and IP Enforcement Directorate,HRG UK,130416444REV,-47.73,Not applicable,
Department for Business Innovation and Skills,Intellectual Property Office,09/07/2014,Travel and subsistence UK,"People, Property and Services Directorate",HRG UK,130564169REV,-47.33,Not applicable,
Department for Business Innovation and Skills,Intellectual Property Office,09/07/2014,Travel and subsistence UK,"People, Property and Services Directorate",HRG UK,130505520REV,-47.33,Not applicable,
Department for Business Innovation and Skills,Intellectual Property Office,09/07/2014,Travel and subsistence UK,Copyright and IP Enforcement Directorate,HRG UK,130574980REV,-47.33,Not applicable,
Department for Business Innovation and Skills,Intellectual Property Office,09/07/2014,Travel and subsistence UK,International Policy Directorate,HRG UK,130336012REV,-47.33,Not applicable,
Department for Business Innovation and Skills,Intellectual Property Office,09/07/2014,Travel and subsistence UK,Copyright and IP Enforcement Directorate,HRG UK,130564511REV,-47.33,Not applicable,
Department for Business Innovation and Skills,Intellectual Property Office,09/07/2014,Travel and subsistence UK,"People, Property and Services Directorate",HRG UK,130573275REV,-47.33,Not applicable,
Department for Business Innovation and Skills,Intellectual Property Office,09/07/2014,Travel and subsistence UK,Copyright and IP Enforcement Directorate,HRG UK,130563782REV,-47.33,Not applicable,
Department for Business Innovation and Skills,Intellectual Property Office,09/07/2014,Travel and subsistence UK,IMPROVE Project,HRG UK,130335999REV,-47.22,Not applicable,
Department for Business Innovation and Skills,Intellectual Property Office,09/07/2014,Travel and subsistence UK,IMPROVE Project,HRG UK,130336003REV,-47.22,Not applicable,
Department for Business Innovation and Skills,Intellectual Property Office,09/07/2014,Travel and subsistence UK,IMPROVE Project,HRG UK,130336001REV,-47.22,Not applicable,
Department for Business Innovation and Skills,Intellectual Property Office,09/07/2014,Travel and subsistence UK,Copyright and IP Enforcement Directorate,HRG UK,130434552REV,-46.13,Not applicable,
Department for Business Innovation and Skills,Intellectual Property Office,09/07/2014,Travel and subsistence UK,Business Support Directorate,HRG UK,130561464REV,-45.93,Not applicable,
Department for Business Innovation and Skills,Intellectual Property Office,09/07/2014,Travel and subsistence UK,International Policy Directorate,HRG UK,130343535REV,-45.00,Not applicable,
Department for Business Innovation and Skills,Intellectual Property Office,09/07/2014,Travel and subsistence UK,Trade Marks Directorate,HRG UK,130526969REV,-45.00,Not applicable,
Department for Business Innovation and Skills,Intellectual Property Office,09/07/2014,Travel and subsistence UK,International Policy Directorate,HRG UK,130526973REV,-44.91,Not applicable,
Department for Business Innovation and Skills,Intellectual Property Office,09/07/2014,Travel and subsistence UK,Innovation Directorate,HRG UK,130563365REV,-44.32,Not applicable,
Department for Business Innovation and Skills,Intellectual Property Office,09/07/2014,Travel and subsistence UK,Copyright and IP Enforcement Directorate,HRG UK,130416447REV,-43.52,Not applicable,
Department for Business Innovation and Skills,Intellectual Property Office,09/07/2014,Travel and subsistence UK,Copyright and IP Enforcement Directorate,HRG UK,130593269REV,-42.61,Not applicable,
Department for Business Innovation and Skills,Intellectual Property Office,09/07/2014,Travel and subsistence UK,International Policy Directorate,HRG UK,130525061REV,-42.01,Not applicable,
Department for Business Innovation and Skills,Intellectual Property Office,09/07/2014,Travel and subsistence UK,Copyright and IP Enforcement Directorate,HRG UK,130613745REV,-42.01,Not applicable,
Department for Business Innovation and Skills,Intellectual Property Office,09/07/2014,Travel and subsistence UK,Copyright and IP Enforcement Directorate,HRG UK,130606806REV,-41.72,Not applicable,
Department for Business Innovation and Skills,Intellectual Property Office,09/07/2014,Travel and subsistence UK,Copyright and IP Enforcement Directorate,HRG UK,130526971REV,-41.62,Not applicable,
Department for Business Innovation and Skills,Intellectual Property Office,09/07/2014,Travel and subsistence UK,Copyright and IP Enforcement Directorate,HRG UK,130614804REV,-41.43,Not applicable,
Department for Business Innovation and Skills,Intellectual Property Office,09/07/2014,Travel and subsistence UK,Copyright and IP Enforcement Directorate,HRG UK,130606795REV,-41.43,Not applicable,
Department for Business Innovation and Skills,Intellectual Property Office,09/07/2014,Travel and subsistence UK,Innovation Directorate,HRG UK,130629128REV,-40.33,Not applicable,
Department for Business Innovation and Skills,Intellectual Property Office,09/07/2014,Travel and subsistence UK,Copyright and IP Enforcement Directorate,HRG UK,130398396REV,-40.22,Not applicable,
Department for Business Innovation and Skills,Intellectual Property Office,09/07/2014,Travel and subsistence UK,Copyright and IP Enforcement Directorate,HRG UK,130433957REV,-39.32,Not applicable,
Department for Business Innovation and Skills,Intellectual Property Office,09/07/2014,Travel and subsistence UK,Copyright and IP Enforcement Directorate,HRG UK,130434094REV,-39.32,Not applicable,
Department for Business Innovation and Skills,Intellectual Property Office,09/07/2014,Travel and subsistence UK,Copyright and IP Enforcement Directorate,HRG UK,130434015REV,-39.32,Not applicable,
Department for Business Innovation and Skills,Intellectual Property Office,09/07/2014,Travel and subsistence UK,Copyright and IP Enforcement Directorate,HRG UK,130450318REV,-38.72,Not applicable,
Department for Business Innovation and Skills,Intellectual Property Office,09/07/2014,Travel and subsistence UK,International Policy Directorate,HRG UK,130374287REV,-38.43,Not applicable,
Department for Business Innovation and Skills,Intellectual Property Office,09/07/2014,Travel and subsistence UK,International Policy Directorate,HRG UK,130490779REV,-38.43,Not applicable,
Department for Business Innovation and Skills,Intellectual Property Office,09/07/2014,Travel and subsistence UK,International Policy Directorate,HRG UK,130461605REV,-38.43,Not applicable,
Department for Business Innovation and Skills,Intellectual Property Office,09/07/2014,Travel and subsistence UK,Innovation Directorate,HRG UK,130574691REV,-38.43,Not applicable,
Department for Business Innovation and Skills,Intellectual Property Office,09/07/2014,Travel and subsistence UK,International Policy Directorate,HRG UK,130400649REV,-38.43,Not applicable,
Department for Business Innovation and Skills,Intellectual Property Office,09/07/2014,Travel and subsistence UK,Innovation Directorate,HRG UK,130504580REV,-38.43,Not applicable,
Department for Business Innovation and Skills,Intellectual Property Office,09/07/2014,Travel and subsistence UK,Innovation Directorate,HRG UK,130398387REV,-38.43,Not applicable,
Department for Business Innovation and Skills,Intellectual Property Office,09/07/2014,Travel and subsistence UK,International Policy Directorate,HRG UK,130592841REV,-38.43,Not applicable,
Department for Business Innovation and Skills,Intellectual Property Office,09/07/2014,Travel and subsistence UK,Innovation Directorate,HRG UK,130336006REV,-36.93,Not applicable,
Department for Business Innovation and Skills,Intellectual Property Office,09/07/2014,Travel and subsistence UK,Central Support,HRG UK,130535117REV,-36.93,Not applicable,
Department for Business Innovation and Skills,Intellectual Property Office,09/07/2014,Travel and subsistence UK,Copyright and IP Enforcement Directorate,HRG UK,130505593REV,-36.33,Not applicable,
Department for Business Innovation and Skills,Intellectual Property Office,09/07/2014,Travel and subsistence UK,International Policy Directorate,HRG UK,130615645REV,-35.45,Not applicable,
Department for Business Innovation and Skills,Intellectual Property Office,09/07/2014,Travel and subsistence UK,"People, Property and Services Directorate",HRG UK,130555517REV,-34.63,Not applicable,
Department for Business Innovation and Skills,Intellectual Property Office,09/07/2014,Travel and subsistence UK,Copyright and IP Enforcement Directorate,HRG UK,130598172,-34.29,Not applicable,
Department for Business Innovation and Skills,Intellectual Property Office,09/07/2014,Travel and subsistence UK,Copyright and IP Enforcement Directorate,HRG UK,130598174,-34.29,Not applicable,
Department for Business Innovation and Skills,Intellectual Property Office,09/07/2014,Travel and subsistence UK,Copyright and IP Enforcement Directorate,HRG UK,130598172INV,-34.26,Not applicable,
Department for Business Innovation and Skills,Intellectual Property Office,09/07/2014,Travel and subsistence UK,Copyright and IP Enforcement Directorate,HRG UK,130598174INV,-34.26,Not applicable,
Department for Business Innovation and Skills,Intellectual Property Office,09/07/2014,Travel and subsistence UK,Trade Marks Directorate,HRG UK,130503797REV,-33.53,Not applicable,
Department for Business Innovation and Skills,Intellectual Property Office,09/07/2014,Travel and subsistence UK,International Policy Directorate,HRG UK,130500314REV,-32.74,Not applicable,
Department for Business Innovation and Skills,Intellectual Property Office,09/07/2014,Travel and subsistence UK,International Policy Directorate,HRG UK,130508447REV,-32.74,Not applicable,
Department for Business Innovation and Skills,Intellectual Property Office,09/07/2014,Travel and subsistence UK,Copyright and IP Enforcement Directorate,HRG UK,130505595REV,-32.43,Not applicable,
Department for Business Innovation and Skills,Intellectual Property Office,09/07/2014,Travel and subsistence UK,Copyright and IP Enforcement Directorate,HRG UK,130419369REV,-32.05,Not applicable,
Department for Business Innovation and Skills,Intellectual Property Office,09/07/2014,Travel and subsistence UK,Trade Marks Directorate,HRG UK,130450322REV,-29.54,Not applicable,
Department for Business Innovation and Skills,Intellectual Property Office,09/07/2014,Travel and subsistence UK,International Policy Directorate,HRG UK,130488773REV,-28.85,Not applicable,
Department for Business Innovation and Skills,Intellectual Property Office,09/07/2014,Travel and subsistence UK,International Policy Directorate,HRG UK,130432580REV,-28.85,Not applicable,
Department for Business Innovation and Skills,Intellectual Property Office,09/07/2014,Travel and subsistence UK,International Policy Directorate,HRG UK,130475220REV,-28.85,Not applicable,
Department for Business Innovation and Skills,Intellectual Property Office,09/07/2014,Travel and subsistence UK,Innovation Directorate,HRG UK,130563364REV,-28.74,Not applicable,
Department for Business Innovation and Skills,Intellectual Property Office,09/07/2014,Travel and subsistence UK,Business Support Directorate,HRG UK,130336009REV,-28.74,Not applicable,
Department for Business Innovation and Skills,Intellectual Property Office,09/07/2014,Travel and subsistence UK,International Policy Directorate,HRG UK,130488772REV,-28.55,Not applicable,
Department for Business Innovation and Skills,Intellectual Property Office,09/07/2014,Travel and subsistence UK,International Policy Directorate,HRG UK,130374286REV,-28.55,Not applicable,
Department for Business Innovation and Skills,Intellectual Property Office,09/07/2014,Travel and subsistence UK,International Policy Directorate,HRG UK,130500313REV,-28.55,Not applicable,
Department for Business Innovation and Skills,Intellectual Property Office,09/07/2014,Travel and subsistence UK,International Policy Directorate,HRG UK,130508446REV,-28.55,Not applicable,
Department for Business Innovation and Skills,Intellectual Property Office,09/07/2014,Travel and subsistence UK,Innovation Directorate,HRG UK,130574690REV,-28.55,Not applicable,
Department for Business Innovation and Skills,Intellectual Property Office,09/07/2014,Travel and subsistence UK,Innovation Directorate,HRG UK,130526965REV,-27.64,Not applicable,
Department for Business Innovation and Skills,Intellectual Property Office,09/07/2014,Travel and subsistence UK,Copyright and IP Enforcement Directorate,HRG UK,130434912REV,-27.35,Not applicable,
Department for Business Innovation and Skills,Intellectual Property Office,09/07/2014,Travel and subsistence UK,Copyright and IP Enforcement Directorate,HRG UK,130416443REV,-26.35,Not applicable,
Department for Business Innovation and Skills,Intellectual Property Office,09/07/2014,Travel and subsistence UK,Copyright and IP Enforcement Directorate,HRG UK,130487202REV,-26.05,Not applicable,
Department for Business Innovation and Skills,Intellectual Property Office,09/07/2014,Travel and subsistence UK,Copyright and IP Enforcement Directorate,HRG UK,130450319REV,-25.77,Not applicable,
Department for Business Innovation and Skills,Intellectual Property Office,09/07/2014,Travel and subsistence UK,Innovation Directorate,HRG UK,130450324REV,-24.95,Not applicable,
Department for Business Innovation and Skills,Intellectual Property Office,09/07/2014,Travel and subsistence UK,International Policy Directorate,HRG UK,130596932REV,-24.95,Not applicable,
Department for Business Innovation and Skills,Intellectual Property Office,09/07/2014,Travel and subsistence UK,International Policy Directorate,HRG UK,130591553REV,-24.95,Not applicable,
Department for Business Innovation and Skills,Intellectual Property Office,09/07/2014,Travel and subsistence UK,Innovation Directorate,HRG UK,130579483REV,-24.64,Not applicable,
Department for Business Innovation and Skills,Intellectual Property Office,09/07/2014,Travel and subsistence UK,International Policy Directorate,HRG UK,130475219REV,-24.64,Not applicable,
Department for Business Innovation and Skills,Intellectual Property Office,09/07/2014,Travel and subsistence UK,Innovation Directorate,HRG UK,130629077REV,-24.00,Not applicable,
Department for Business Innovation and Skills,Intellectual Property Office,09/07/2014,Travel and subsistence UK,Copyright and IP Enforcement Directorate,HRG UK,130458834REV,-23.85,Not applicable,
Department for Business Innovation and Skills,Intellectual Property Office,09/07/2014,Travel and subsistence UK,Copyright and IP Enforcement Directorate,HRG UK,130580561REV,-23.75,Not applicable,
Department for Business Innovation and Skills,Intellectual Property Office,09/07/2014,Travel and subsistence UK,International Policy Directorate,HRG UK,130636616REV,-21.67,Not applicable,
Department for Business Innovation and Skills,Intellectual Property Office,09/07/2014,Travel and subsistence UK,International Policy Directorate,HRG UK,130438236REV,-21.06,Not applicable,
Department for Business Innovation and Skills,Intellectual Property Office,09/07/2014,Travel and subsistence UK,Copyright and IP Enforcement Directorate,HRG UK,130491507REV,-21.06,Not applicable,
Department for Business Innovation and Skills,Intellectual Property Office,09/07/2014,Travel and subsistence UK,Copyright and IP Enforcement Directorate,HRG UK,130505592REV,-21.06,Not applicable,
Department for Business Innovation and Skills,Intellectual Property Office,09/07/2014,Travel and subsistence UK,Innovation Directorate,HRG UK,130491641REV,-21.06,Not applicable,
Department for Business Innovation and Skills,Intellectual Property Office,09/07/2014,Travel and subsistence UK,International Policy Directorate,HRG UK,130500162REV,-21.06,Not applicable,
Department for Business Innovation and Skills,Intellectual Property Office,09/07/2014,Travel and subsistence UK,Copyright and IP Enforcement Directorate,HRG UK,130542206REV,-20.75,Not applicable,
Department for Business Innovation and Skills,Intellectual Property Office,09/07/2014,Travel and subsistence UK,International Policy Directorate,HRG UK,130432579REV,-20.75,Not applicable,
Department for Business Innovation and Skills,Intellectual Property Office,09/07/2014,Travel and subsistence UK,Innovation Directorate,HRG UK,130461514REV,-20.75,Not applicable,
Department for Business Innovation and Skills,Intellectual Property Office,09/07/2014,Travel and subsistence UK,Patents Directorate,HRG UK,130434078REV,-17.86,Not applicable,
Department for Business Innovation and Skills,Intellectual Property Office,09/07/2014,Travel and subsistence UK,Patents Directorate,HRG UK,130434077REV,-17.86,Not applicable,
Department for Business Innovation and Skills,Intellectual Property Office,09/07/2014,Travel and subsistence UK,Patents Directorate,HRG UK,130434096REV,-17.86,Not applicable,
Department for Business Innovation and Skills,Intellectual Property Office,09/07/2014,Travel and subsistence UK,Patents Directorate,HRG UK,130633904REV,-17.86,Not applicable,
Department for Business Innovation and Skills,Intellectual Property Office,09/07/2014,Travel and subsistence UK,Patents Directorate,HRG UK,130434097REV,-17.86,Not applicable,
Department for Business Innovation and Skills,Intellectual Property Office,09/07/2014,Travel and subsistence UK,Patents Directorate,HRG UK,130633544REV,-17.86,Not applicable,
Department for Business Innovation and Skills,Intellectual Property Office,09/07/2014,Travel and subsistence UK,Copyright and IP Enforcement Directorate,HRG UK,130346386REV,-17.77,Not applicable,
Department for Business Innovation and Skills,Intellectual Property Office,09/07/2014,Travel and subsistence UK,Copyright and IP Enforcement Directorate,HRG UK,130491505REV,-17.77,Not applicable,
Department for Business Innovation and Skills,Intellectual Property Office,09/07/2014,Travel and subsistence UK,Copyright and IP Enforcement Directorate,HRG UK,130505594REV,-17.18,Not applicable,
Department for Business Innovation and Skills,Intellectual Property Office,09/07/2014,Travel and subsistence UK,Innovation Directorate,HRG UK,130461515REV,-17.18,Not applicable,
Department for Business Innovation and Skills,Intellectual Property Office,09/07/2014,Travel and subsistence UK,Copyright and IP Enforcement Directorate,HRG UK,130450321REV,-17.18,Not applicable,
Department for Business Innovation and Skills,Intellectual Property Office,09/07/2014,Travel and subsistence UK,Copyright and IP Enforcement Directorate,HRG UK,130505596REV,-17.18,Not applicable,
Department for Business Innovation and Skills,Intellectual Property Office,09/07/2014,Travel and subsistence UK,Copyright and IP Enforcement Directorate,HRG UK,130526968REV,-17.18,Not applicable,
Department for Business Innovation and Skills,Intellectual Property Office,03/07/2014,Travel and subsistence UK,Innovation Directorate,Leasedrive Velo Rental Management Ltd,CRD00068768,-14.72,Not applicable,
Department for Business Innovation and Skills,Intellectual Property Office,09/07/2014,Travel and subsistence UK,Copyright and IP Enforcement Directorate,HRG UK,130485669REV,-13.76,Not applicable,
Department for Business Innovation and Skills,Intellectual Property Office,09/07/2014,Travel and subsistence UK,International Policy Directorate,HRG UK,130364710REV,-12.98,Not applicable,
Department for Business Innovation and Skills,Intellectual Property Office,09/07/2014,Travel and subsistence UK,Patents Directorate,HRG UK,130606788REV,-12.76,Not applicable,
Department for Business Innovation and Skills,Intellectual Property Office,09/07/2014,Travel and subsistence UK,Innovation Directorate,HRG UK,130579596REV,-12.56,Not applicable,
Department for Business Innovation and Skills,Intellectual Property Office,09/07/2014,Travel and subsistence UK,Business Support Directorate,HRG UK,130542209REV,-12.56,Not applicable,
Department for Business Innovation and Skills,Intellectual Property Office,09/07/2014,Travel and subsistence UK,Business Support Directorate,HRG UK,130408651REV,-12.56,Not applicable,
Department for Business Innovation and Skills,Intellectual Property Office,09/07/2014,Travel and subsistence UK,Innovation Directorate,HRG UK,130579595REV,-12.56,Not applicable,
Department for Business Innovation and Skills,Intellectual Property Office,09/07/2014,Travel and subsistence UK,Innovation Directorate,HRG UK,130448555REV,-11.10,Not applicable,
Department for Business Innovation and Skills,Intellectual Property Office,09/07/2014,Travel and subsistence UK,Copyright and IP Enforcement Directorate,HRG UK,130428360REV,-11.10,Not applicable,
Department for Business Innovation and Skills,Intellectual Property Office,09/07/2014,Travel and subsistence UK,Innovation Directorate,HRG UK,130635835REV,-10.27,Not applicable,
Department for Business Innovation and Skills,Intellectual Property Office,09/07/2014,Travel and subsistence UK,Copyright and IP Enforcement Directorate,HRG UK,130544754REV,-9.86,Not applicable,
Department for Business Innovation and Skills,Intellectual Property Office,09/07/2014,Travel and subsistence UK,Copyright and IP Enforcement Directorate,HRG UK,130544465REV,-9.86,Not applicable,
Department for Business Innovation and Skills,Intellectual Property Office,09/07/2014,Travel and subsistence UK,Business Support Directorate,HRG UK,130595010REV,-9.73,Not applicable,
Department for Business Innovation and Skills,Intellectual Property Office,09/07/2014,Travel and subsistence UK,International Policy Directorate,HRG UK,130590282REV,-9.73,Not applicable,
Department for Business Innovation and Skills,Intellectual Property Office,09/07/2014,Travel and subsistence UK,Patents Directorate,HRG UK,130606803REV,-8.98,Not applicable,
Department for Business Innovation and Skills,Intellectual Property Office,09/07/2014,Travel and subsistence UK,Innovation Directorate,HRG UK,130436745REV,-8.38,Not applicable,
Department for Business Innovation and Skills,Intellectual Property Office,09/07/2014,Travel and subsistence UK,Copyright and IP Enforcement Directorate,HRG UK,130379950REV,-8.02,Not applicable,
Department for Business Innovation and Skills,Intellectual Property Office,09/07/2014,Travel and subsistence UK,Innovation Directorate,HRG UK,130353723REV,-8.02,Not applicable,
Department for Business Innovation and Skills,Intellectual Property Office,09/07/2014,Travel and subsistence UK,Copyright and IP Enforcement Directorate,HRG UK,130367156REV,-8.02,Not applicable,
Department for Business Innovation and Skills,Intellectual Property Office,09/07/2014,Travel and subsistence UK,Copyright and IP Enforcement Directorate,HRG UK,130367159REV,-8.02,Not applicable,
Department for Business Innovation and Skills,Intellectual Property Office,09/07/2014,Travel and subsistence UK,Innovation Directorate,HRG UK,130353409REV,-8.02,Not applicable,
Department for Business Innovation and Skills,Intellectual Property Office,09/07/2014,Travel and subsistence UK,Innovation Directorate,HRG UK,130448579REV,-8.02,Not applicable,
Department for Business Innovation and Skills,Intellectual Property Office,09/07/2014,Travel and subsistence UK,Innovation Directorate,HRG UK,130353724REV,-8.02,Not applicable,
Department for Business Innovation and Skills,Intellectual Property Office,09/07/2014,Travel and subsistence UK,Copyright and IP Enforcement Directorate,HRG UK,130367127REV,-8.02,Not applicable,
Department for Business Innovation and Skills,Intellectual Property Office,09/07/2014,Travel and subsistence UK,Copyright and IP Enforcement Directorate,HRG UK,130367164REV,-8.02,Not applicable,
Department for Business Innovation and Skills,Intellectual Property Office,09/07/2014,Travel and subsistence UK,Innovation Directorate,HRG UK,130353391REV,-8.02,Not applicable,
Department for Business Innovation and Skills,Intellectual Property Office,09/07/2014,Travel and subsistence UK,Innovation Directorate,HRG UK,130339134REV,-8.02,Not applicable,
Department for Business Innovation and Skills,Intellectual Property Office,09/07/2014,Travel and subsistence UK,Innovation Directorate,HRG UK,130353411REV,-8.02,Not applicable,
Department for Business Innovation and Skills,Intellectual Property Office,09/07/2014,Travel and subsistence UK,International Policy Directorate,HRG UK,130339219REV,-8.02,Not applicable,
Department for Business Innovation and Skills,Intellectual Property Office,09/07/2014,Travel and subsistence UK,Copyright and IP Enforcement Directorate,HRG UK,130367107REV,-8.02,Not applicable,
Department for Business Innovation and Skills,Intellectual Property Office,09/07/2014,Travel and subsistence UK,Copyright and IP Enforcement Directorate,HRG UK,130379951REV,-8.02,Not applicable,
Department for Business Innovation and Skills,Intellectual Property Office,09/07/2014,Travel and subsistence UK,International Policy Directorate,HRG UK,130498440REV,-8.02,Not applicable,
Department for Business Innovation and Skills,Intellectual Property Office,09/07/2014,Travel and subsistence UK,Copyright and IP Enforcement Directorate,HRG UK,130367109REV,-8.02,Not applicable,
Department for Business Innovation and Skills,Intellectual Property Office,09/07/2014,Travel and subsistence UK,Innovation Directorate,HRG UK,130339135REV,-8.02,Not applicable,
Department for Business Innovation and Skills,Intellectual Property Office,09/07/2014,Travel and subsistence UK,Innovation Directorate,HRG UK,130353418REV,-8.02,Not applicable,
Department for Business Innovation and Skills,Intellectual Property Office,09/07/2014,Travel and subsistence UK,International Policy Directorate,HRG UK,130339220REV,-8.02,Not applicable,
Department for Business Innovation and Skills,Intellectual Property Office,09/07/2014,Travel and subsistence UK,Copyright and IP Enforcement Directorate,HRG UK,130367140REV,-8.02,Not applicable,
Department for Business Innovation and Skills,Intellectual Property Office,09/07/2014,Travel and subsistence UK,International Policy Directorate,HRG UK,130414403REV,-8.02,Not applicable,
Department for Business Innovation and Skills,Intellectual Property Office,09/07/2014,Travel and subsistence UK,Innovation Directorate,HRG UK,130498401REV,-8.02,Not applicable,
Department for Business Innovation and Skills,Intellectual Property Office,09/07/2014,Travel and subsistence UK,Copyright and IP Enforcement Directorate,HRG UK,130511400REV,-8.02,Not applicable,
Department for Business Innovation and Skills,Intellectual Property Office,09/07/2014,Travel and subsistence UK,Innovation Directorate,HRG UK,130448599REV,-8.02,Not applicable,
Department for Business Innovation and Skills,Intellectual Property Office,09/07/2014,Travel and subsistence UK,Innovation Directorate,HRG UK,130353713REV,-8.02,Not applicable,
Department for Business Innovation and Skills,Intellectual Property Office,09/07/2014,Travel and subsistence UK,Copyright and IP Enforcement Directorate,HRG UK,130367208REV,-8.02,Not applicable,
Department for Business Innovation and Skills,Intellectual Property Office,09/07/2014,Travel and subsistence UK,Patents Directorate,HRG UK,130634057REV,-7.89,Not applicable,
Department for Business Innovation and Skills,Intellectual Property Office,09/07/2014,Travel and subsistence UK,Innovation Directorate,HRG UK,130635766REV,-7.79,Not applicable,
Department for Business Innovation and Skills,Intellectual Property Office,09/07/2014,Travel and subsistence UK,Innovation Directorate,HRG UK,130436466REV,-7.79,Not applicable,
Department for Business Innovation and Skills,Intellectual Property Office,09/07/2014,Travel and subsistence UK,Innovation Directorate,HRG UK,130422390REV,-7.79,Not applicable,
Department for Business Innovation and Skills,Intellectual Property Office,09/07/2014,Travel and subsistence UK,Copyright and IP Enforcement Directorate,HRG UK,130571153REV,-6.78,Not applicable,
Department for Business Innovation and Skills,Intellectual Property Office,09/07/2014,Travel and subsistence UK,Copyright and IP Enforcement Directorate,HRG UK,130571152REV,-6.78,Not applicable,
Department for Business Innovation and Skills,Intellectual Property Office,09/07/2014,Travel and subsistence UK,Copyright and IP Enforcement Directorate,HRG UK,130571151REV,-6.78,Not applicable,
Department for Business Innovation and Skills,Intellectual Property Office,09/07/2014,Travel and subsistence UK,Copyright and IP Enforcement Directorate,HRG UK,130571154REV,-6.78,Not applicable,
Department for Business Innovation and Skills,Intellectual Property Office,09/07/2014,Travel and subsistence UK,Copyright and IP Enforcement Directorate,HRG UK,130571157REV,-6.78,Not applicable,
Department for Business Innovation and Skills,Intellectual Property Office,09/07/2014,Travel and subsistence UK,Copyright and IP Enforcement Directorate,HRG UK,130609048REV,-6.78,Not applicable,
Department for Business Innovation and Skills,Intellectual Property Office,09/07/2014,Travel and subsistence UK,Copyright and IP Enforcement Directorate,HRG UK,130543591REV,-6.78,Not applicable,
Department for Business Innovation and Skills,Intellectual Property Office,09/07/2014,Travel and subsistence UK,Innovation Directorate,HRG UK,130571364REV,-6.78,Not applicable,
Department for Business Innovation and Skills,Intellectual Property Office,09/07/2014,Travel and subsistence UK,Innovation Directorate,HRG UK,130571372REV,-6.78,Not applicable,
Department for Business Innovation and Skills,Intellectual Property Office,09/07/2014,Travel and subsistence UK,Copyright and IP Enforcement Directorate,HRG UK,130571150REV,-6.78,Not applicable,
Department for Business Innovation and Skills,Intellectual Property Office,09/07/2014,Travel and subsistence UK,Copyright and IP Enforcement Directorate,HRG UK,130571155REV,-6.78,Not applicable,
Department for Business Innovation and Skills,Intellectual Property Office,09/07/2014,Travel and subsistence UK,Copyright and IP Enforcement Directorate,HRG UK,130571156REV,-6.78,Not applicable,
Department for Business Innovation and Skills,Intellectual Property Office,09/07/2014,Travel and subsistence UK,Finance Directorate,HRG UK,130543665REV,-6.17,Not applicable,
Department for Business Innovation and Skills,Intellectual Property Office,09/07/2014,Travel and subsistence UK,Copyright and IP Enforcement Directorate,HRG UK,130413711REV,-6.17,Not applicable,
Department for Business Innovation and Skills,Intellectual Property Office,09/07/2014,Travel and subsistence UK,Copyright and IP Enforcement Directorate,HRG UK,130598207INV,-3.85,Not applicable,
Department for Business Innovation and Skills,Intellectual Property Office,09/07/2014,Travel and subsistence UK,Copyright and IP Enforcement Directorate,HRG UK,130598207,-3.85,Not applicable,
Department for Business Innovation and Skills,Intellectual Property Office,09/07/2014,Travel and subsistence UK,Business Support Directorate,HRG UK,130366748REV,-3.08,Not applicable,
Department for Business Innovation and Skills,Intellectual Property Office,09/07/2014,Travel and subsistence UK,International Policy Directorate,HRG UK,130379296REV,-3.08,Not applicable,
Department for Business Innovation and Skills,Intellectual Property Office,09/07/2014,Travel and subsistence UK,Copyright and IP Enforcement Directorate,HRG UK,130396588REV,-3.08,Not applicable,
Department for Business Innovation and Skills,Intellectual Property Office,09/07/2014,Travel and subsistence UK,Innovation Directorate,HRG UK,130570933REV,-3.08,Not applicable,
Department for Business Innovation and Skills,Intellectual Property Office,09/07/2014,Travel and subsistence UK,Innovation Directorate,HRG UK,130497470REV,-3.08,Not applicable,
Department for Business Innovation and Skills,Intellectual Property Office,09/07/2014,Travel and subsistence UK,Innovation Directorate,HRG UK,130352807REV,-3.08,Not applicable,
Department for Business Innovation and Skills,Intellectual Property Office,09/07/2014,Travel and subsistence UK,Innovation Directorate,HRG UK,130352858REV,-3.08,Not applicable,
Department for Business Innovation and Skills,Intellectual Property Office,09/07/2014,Travel and subsistence UK,Innovation Directorate,HRG UK,130469992REV,-3.08,Not applicable,
Department for Business Innovation and Skills,Intellectual Property Office,09/07/2014,Travel and subsistence UK,Innovation Directorate,HRG UK,130484573REV,-3.08,Not applicable,
Department for Business Innovation and Skills,Intellectual Property Office,09/07/2014,Travel and subsistence UK,Innovation Directorate,HRG UK,130484645REV,-3.08,Not applicable,
Department for Business Innovation and Skills,Intellectual Property Office,09/07/2014,Travel and subsistence UK,Copyright and IP Enforcement Directorate,HRG UK,130353887REV,-3.08,Not applicable,
Department for Business Innovation and Skills,Intellectual Property Office,09/07/2014,Travel and subsistence UK,International Policy Directorate,HRG UK,130608290REV,-3.08,Not applicable,
Department for Business Innovation and Skills,Intellectual Property Office,09/07/2014,Travel and subsistence UK,Copyright and IP Enforcement Directorate,HRG UK,130544596REV,-3.08,Not applicable,
Department for Business Innovation and Skills,Intellectual Property Office,09/07/2014,Travel and subsistence UK,International Policy Directorate,HRG UK,130590647REV,-3.08,Not applicable,
Department for Business Innovation and Skills,Intellectual Property Office,09/07/2014,Travel and subsistence UK,Innovation Directorate,HRG UK,130624543REV,-3.08,Not applicable,
Department for Business Innovation and Skills,Intellectual Property Office,09/07/2014,Travel and subsistence UK,Copyright and IP Enforcement Directorate,HRG UK,130497326REV,-3.08,Not applicable,
Department for Business Innovation and Skills,Intellectual Property Office,09/07/2014,Travel and subsistence UK,Copyright and IP Enforcement Directorate,HRG UK,130366769REV,-3.08,Not applicable,
Department for Business Innovation and Skills,Intellectual Property Office,09/07/2014,Travel and subsistence UK,Innovation Directorate,HRG UK,130498296REV,-3.08,Not applicable,
Department for Business Innovation and Skills,Intellectual Property Office,09/07/2014,Travel and subsistence UK,Innovation Directorate,HRG UK,130498312REV,-3.08,Not applicable,
Department for Business Innovation and Skills,Intellectual Property Office,09/07/2014,Travel and subsistence UK,Innovation Directorate,HRG UK,130511178REV,-3.08,Not applicable,
Department for Business Innovation and Skills,Intellectual Property Office,09/07/2014,Travel and subsistence UK,Innovation Directorate,HRG UK,130511198REV,-3.08,Not applicable,
Department for Business Innovation and Skills,Intellectual Property Office,09/07/2014,Travel and subsistence UK,Innovation Directorate,HRG UK,130511249REV,-3.08,Not applicable,
Department for Business Innovation and Skills,Intellectual Property Office,09/07/2014,Travel and subsistence UK,Innovation Directorate,HRG UK,130511250REV,-3.08,Not applicable,
Department for Business Innovation and Skills,Intellectual Property Office,09/07/2014,Travel and subsistence UK,Innovation Directorate,HRG UK,130529330REV,-3.08,Not applicable,
Department for Business Innovation and Skills,Intellectual Property Office,09/07/2014,Travel and subsistence UK,Innovation Directorate,HRG UK,130624127REV,-3.08,Not applicable,
Department for Business Innovation and Skills,Intellectual Property Office,09/07/2014,Travel and subsistence UK,Innovation Directorate,HRG UK,130440513REV,-3.08,Not applicable,
Department for Business Innovation and Skills,Intellectual Property Office,09/07/2014,Travel and subsistence UK,Innovation Directorate,HRG UK,130570908REV,-3.08,Not applicable,
Department for Business Innovation and Skills,Intellectual Property Office,09/07/2014,Travel and subsistence UK,Innovation Directorate,HRG UK,130397856REV,-3.08,Not applicable,
Department for Business Innovation and Skills,Intellectual Property Office,09/07/2014,Travel and subsistence UK,Innovation Directorate,HRG UK,130484539REV,-3.08,Not applicable,
Department for Business Innovation and Skills,Intellectual Property Office,09/07/2014,Travel and subsistence UK,Innovation Directorate,HRG UK,130484654REV,-3.08,Not applicable,
Department for Business Innovation and Skills,Intellectual Property Office,09/07/2014,Travel and subsistence UK,Copyright and IP Enforcement Directorate,HRG UK,130529366REV,-3.08,Not applicable,
Department for Business Innovation and Skills,Intellectual Property Office,09/07/2014,Travel and subsistence UK,International Policy Directorate,HRG UK,130497458REV,-3.08,Not applicable,
Department for Business Innovation and Skills,Intellectual Property Office,09/07/2014,Travel and subsistence UK,Innovation Directorate,HRG UK,130543750REV,-3.08,Not applicable,
Department for Business Innovation and Skills,Intellectual Property Office,09/07/2014,Travel and subsistence UK,Copyright and IP Enforcement Directorate,HRG UK,130625347REV,-3.08,Not applicable,
Department for Business Innovation and Skills,Intellectual Property Office,09/07/2014,Travel and subsistence UK,Innovation Directorate,HRG UK,130497482REV,-3.08,Not applicable,
Department for Business Innovation and Skills,Intellectual Property Office,09/07/2014,Travel and subsistence UK,Innovation Directorate,HRG UK,130497546REV,-3.08,Not applicable,
Department for Business Innovation and Skills,Intellectual Property Office,09/07/2014,Travel and subsistence UK,Innovation Directorate,HRG UK,130511053REV,-3.08,Not applicable,
Department for Business Innovation and Skills,Intellectual Property Office,09/07/2014,Travel and subsistence UK,Innovation Directorate,HRG UK,130511205REV,-3.08,Not applicable,
Department for Business Innovation and Skills,Intellectual Property Office,09/07/2014,Travel and subsistence UK,Innovation Directorate,HRG UK,130427738REV,-3.08,Not applicable,
Department for Business Innovation and Skills,Intellectual Property Office,09/07/2014,Travel and subsistence UK,Innovation Directorate,HRG UK,130624884REV,-3.08,Not applicable,
Department for Business Innovation and Skills,Intellectual Property Office,09/07/2014,Travel and subsistence UK,Innovation Directorate,HRG UK,130352874REV,-3.08,Not applicable,
Department for Business Innovation and Skills,Intellectual Property Office,09/07/2014,Travel and subsistence UK,Innovation Directorate,HRG UK,130440185REV,-3.08,Not applicable,
Department for Business Innovation and Skills,Intellectual Property Office,09/07/2014,Travel and subsistence UK,Innovation Directorate,HRG UK,130397128REV,-3.08,Not applicable,
Department for Business Innovation and Skills,Intellectual Property Office,09/07/2014,Travel and subsistence UK,Innovation Directorate,HRG UK,130484337REV,-3.08,Not applicable,
Department for Business Innovation and Skills,Intellectual Property Office,09/07/2014,Travel and subsistence UK,Trade Marks Directorate,HRG UK,130427368REV,-3.08,Not applicable,
Department for Business Innovation and Skills,Intellectual Property Office,09/07/2014,Travel and subsistence UK,Copyright and IP Enforcement Directorate,HRG UK,130427176REV,-3.08,Not applicable,
Department for Business Innovation and Skills,Intellectual Property Office,09/07/2014,Travel and subsistence UK,International Policy Directorate,HRG UK,130469948REV,-3.08,Not applicable,
Department for Business Innovation and Skills,Intellectual Property Office,09/07/2014,Travel and subsistence UK,Innovation Directorate,HRG UK,130511209REV,-3.08,Not applicable,
Department for Business Innovation and Skills,Intellectual Property Office,09/07/2014,Travel and subsistence UK,Innovation Directorate,HRG UK,130511882REV,-3.08,Not applicable,
Department for Business Innovation and Skills,Intellectual Property Office,09/07/2014,Travel and subsistence UK,Innovation Directorate,HRG UK,130427291REV,-3.08,Not applicable,
Department for Business Innovation and Skills,Intellectual Property Office,09/07/2014,Travel and subsistence UK,Innovation Directorate,HRG UK,130529403REV,-3.08,Not applicable,
Department for Business Innovation and Skills,Intellectual Property Office,09/07/2014,Travel and subsistence UK,International Policy Directorate,HRG UK,130497404REV,-3.08,Not applicable,
Department for Business Innovation and Skills,Intellectual Property Office,09/07/2014,Travel and subsistence UK,Innovation Directorate,HRG UK,130352785REV,-3.08,Not applicable,
Department for Business Innovation and Skills,Intellectual Property Office,09/07/2014,Travel and subsistence UK,Innovation Directorate,HRG UK,130608234REV,-3.08,Not applicable,
Department for Business Innovation and Skills,Intellectual Property Office,09/07/2014,Travel and subsistence UK,Innovation Directorate,HRG UK,130427728REV,-3.08,Not applicable,
Department for Business Innovation and Skills,Intellectual Property Office,09/07/2014,Travel and subsistence UK,Innovation Directorate,HRG UK,130528283REV,-3.08,Not applicable,
Department for Business Innovation and Skills,Intellectual Property Office,09/07/2014,Travel and subsistence UK,Copyright and IP Enforcement Directorate,HRG UK,130439881REV,-3.08,Not applicable,
Department for Business Innovation and Skills,Intellectual Property Office,09/07/2014,Travel and subsistence UK,International Policy Directorate,HRG UK,130497376REV,-3.08,Not applicable,
Department for Business Innovation and Skills,Intellectual Property Office,09/07/2014,Travel and subsistence UK,International Policy Directorate,HRG UK,130484035REV,-3.08,Not applicable,
Department for Business Innovation and Skills,Intellectual Property Office,09/07/2014,Travel and subsistence UK,Business Support Directorate,HRG UK,130339921REV,-3.08,Not applicable,
Department for Business Innovation and Skills,Intellectual Property Office,09/07/2014,Travel and subsistence UK,International Policy Directorate,HRG UK,130352937REV,-3.08,Not applicable,
Department for Business Innovation and Skills,Intellectual Property Office,09/07/2014,Travel and subsistence UK,Innovation Directorate,HRG UK,130570270REV,-3.08,Not applicable,
Department for Business Innovation and Skills,Intellectual Property Office,09/07/2014,Travel and subsistence UK,Innovation Directorate,HRG UK,130589274REV,-3.08,Not applicable,
Department for Business Innovation and Skills,Intellectual Property Office,09/07/2014,Travel and subsistence UK,Innovation Directorate,HRG UK,130589388REV,-3.08,Not applicable,
Department for Business Innovation and Skills,Intellectual Property Office,09/07/2014,Travel and subsistence UK,Innovation Directorate,HRG UK,130497555REV,-3.08,Not applicable,
Department for Business Innovation and Skills,Intellectual Property Office,09/07/2014,Travel and subsistence UK,Innovation Directorate,HRG UK,130624135REV,-3.08,Not applicable,
Department for Business Innovation and Skills,Intellectual Property Office,09/07/2014,Travel and subsistence UK,Innovation Directorate,HRG UK,130397873REV,-3.08,Not applicable,
Department for Business Innovation and Skills,Intellectual Property Office,09/07/2014,Travel and subsistence UK,Copyright and IP Enforcement Directorate,HRG UK,130581431REV,-3.08,Not applicable,
Department for Business Innovation and Skills,Intellectual Property Office,09/07/2014,Travel and subsistence UK,International Policy Directorate,HRG UK,130485399REV,-3.08,Not applicable,
Department for Business Innovation and Skills,Intellectual Property Office,09/07/2014,Travel and subsistence UK,Business Support Directorate,HRG UK,130379304REV,-3.08,Not applicable,
Department for Business Innovation and Skills,Intellectual Property Office,09/07/2014,Travel and subsistence UK,International Policy Directorate,HRG UK,130354164REV,-3.08,Not applicable,
Department for Business Innovation and Skills,Intellectual Property Office,09/07/2014,Travel and subsistence UK,Innovation Directorate,HRG UK,130470657REV,-3.08,Not applicable,
Department for Business Innovation and Skills,Intellectual Property Office,09/07/2014,Travel and subsistence UK,Copyright and IP Enforcement Directorate,HRG UK,130366550REV,-3.08,Not applicable,
Department for Business Innovation and Skills,Intellectual Property Office,09/07/2014,Travel and subsistence UK,Copyright and IP Enforcement Directorate,HRG UK,130367297REV,-3.08,Not applicable,
Department for Business Innovation and Skills,Intellectual Property Office,09/07/2014,Travel and subsistence UK,Innovation Directorate,HRG UK,130570944REV,-3.08,Not applicable,
Department for Business Innovation and Skills,Intellectual Property Office,09/07/2014,Travel and subsistence UK,Innovation Directorate,HRG UK,130511192REV,-3.08,Not applicable,
Department for Business Innovation and Skills,Intellectual Property Office,09/07/2014,Travel and subsistence UK,Innovation Directorate,HRG UK,130427757REV,-3.08,Not applicable,
Department for Business Innovation and Skills,Intellectual Property Office,09/07/2014,Travel and subsistence UK,Innovation Directorate,HRG UK,130427747REV,-3.08,Not applicable,
Department for Business Innovation and Skills,Intellectual Property Office,09/07/2014,Travel and subsistence UK,Innovation Directorate,HRG UK,130469995REV,-3.08,Not applicable,
Department for Business Innovation and Skills,Intellectual Property Office,09/07/2014,Travel and subsistence UK,Innovation Directorate,HRG UK,130485102REV,-3.08,Not applicable,
Department for Business Innovation and Skills,Intellectual Property Office,09/07/2014,Travel and subsistence UK,Business Support Directorate,HRG UK,130366555REV,-3.08,Not applicable,
Department for Business Innovation and Skills,Intellectual Property Office,09/07/2014,Travel and subsistence UK,Copyright and IP Enforcement Directorate,HRG UK,130498371REV,-3.08,Not applicable,
Department for Business Innovation and Skills,Intellectual Property Office,09/07/2014,Travel and subsistence UK,International Policy Directorate,HRG UK,130607590REV,-3.08,Not applicable,
Department for Business Innovation and Skills,Intellectual Property Office,09/07/2014,Travel and subsistence UK,International Policy Directorate,HRG UK,130447609REV,-3.08,Not applicable,
Department for Business Innovation and Skills,Intellectual Property Office,21/07/2014,Travel and subsistence UK,Business Support Directorate,Personal expenses name witheld,ER121251,2.00,Not applicable,
Department for Business Innovation and Skills,Intellectual Property Office,09/07/2014,Travel and subsistence UK,International Policy Directorate,HRG UK,130469948INV,2.57,Not applicable,
Department for Business Innovation and Skills,Intellectual Property Office,09/07/2014,Travel and subsistence UK,Innovation Directorate,HRG UK,130543750INV,2.57,Not applicable,
Department for Business Innovation and Skills,Intellectual Property Office,09/07/2014,Travel and subsistence UK,Copyright and IP Enforcement Directorate,HRG UK,130367297INV,2.57,Not applicable,
Department for Business Innovation and Skills,Intellectual Property Office,09/07/2014,Travel and subsistence UK,Innovation Directorate,HRG UK,130469995INV,2.57,Not applicable,
Department for Business Innovation and Skills,Intellectual Property Office,09/07/2014,Travel and subsistence UK,Innovation Directorate,HRG UK,130511249INV,2.57,Not applicable,
Department for Business Innovation and Skills,Intellectual Property Office,09/07/2014,Travel and subsistence UK,Innovation Directorate,HRG UK,130427747INV,2.57,Not applicable,
Department for Business Innovation and Skills,Intellectual Property Office,09/07/2014,Travel and subsistence UK,International Policy Directorate,HRG UK,130497376INV,2.57,Not applicable,
Department for Business Innovation and Skills,Intellectual Property Office,09/07/2014,Travel and subsistence UK,Innovation Directorate,HRG UK,130352785INV,2.57,Not applicable,
Department for Business Innovation and Skills,Intellectual Property Office,09/07/2014,Travel and subsistence UK,International Policy Directorate,HRG UK,130352937INV,2.57,Not applicable,
Department for Business Innovation and Skills,Intellectual Property Office,09/07/2014,Travel and subsistence UK,Copyright and IP Enforcement Directorate,HRG UK,130497326INV,2.57,Not applicable,
Department for Business Innovation and Skills,Intellectual Property Office,09/07/2014,Travel and subsistence UK,Copyright and IP Enforcement Directorate,HRG UK,130396588INV,2.57,Not applicable,
Department for Business Innovation and Skills,Intellectual Property Office,09/07/2014,Travel and subsistence UK,Innovation Directorate,HRG UK,130608234INV,2.57,Not applicable,
Department for Business Innovation and Skills,Intellectual Property Office,09/07/2014,Travel and subsistence UK,Innovation Directorate,HRG UK,130498312INV,2.57,Not applicable,
Department for Business Innovation and Skills,Intellectual Property Office,09/07/2014,Travel and subsistence UK,Innovation Directorate,HRG UK,130511178INV,2.57,Not applicable,
Department for Business Innovation and Skills,Intellectual Property Office,09/07/2014,Travel and subsistence UK,Innovation Directorate,HRG UK,130511205INV,2.57,Not applicable,
Department for Business Innovation and Skills,Intellectual Property Office,09/07/2014,Travel and subsistence UK,Innovation Directorate,HRG UK,130589388INV,2.57,Not applicable,
Department for Business Innovation and Skills,Intellectual Property Office,09/07/2014,Travel and subsistence UK,Innovation Directorate,HRG UK,130440185INV,2.57,Not applicable,
Department for Business Innovation and Skills,Intellectual Property Office,09/07/2014,Travel and subsistence UK,Business Support Directorate,HRG UK,130366555INV,2.57,Not applicable,
Department for Business Innovation and Skills,Intellectual Property Office,09/07/2014,Travel and subsistence UK,Copyright and IP Enforcement Directorate,HRG UK,130498371INV,2.57,Not applicable,
Department for Business Innovation and Skills,Intellectual Property Office,09/07/2014,Travel and subsistence UK,Copyright and IP Enforcement Directorate,HRG UK,130544596INV,2.57,Not applicable,
Department for Business Innovation and Skills,Intellectual Property Office,09/07/2014,Travel and subsistence UK,International Policy Directorate,HRG UK,130497458INV,2.57,Not applicable,
Department for Business Innovation and Skills,Intellectual Property Office,09/07/2014,Travel and subsistence UK,International Policy Directorate,HRG UK,130447609INV,2.57,Not applicable,
Department for Business Innovation and Skills,Intellectual Property Office,09/07/2014,Travel and subsistence UK,Copyright and IP Enforcement Directorate,HRG UK,130366769INV,2.57,Not applicable,
Department for Business Innovation and Skills,Intellectual Property Office,09/07/2014,Travel and subsistence UK,Innovation Directorate,HRG UK,130624135INV,2.57,Not applicable,
Department for Business Innovation and Skills,Intellectual Property Office,09/07/2014,Travel and subsistence UK,Innovation Directorate,HRG UK,130397128INV,2.57,Not applicable,
Department for Business Innovation and Skills,Intellectual Property Office,09/07/2014,Travel and subsistence UK,Innovation Directorate,HRG UK,130570944INV,2.57,Not applicable,
Department for Business Innovation and Skills,Intellectual Property Office,09/07/2014,Travel and subsistence UK,Innovation Directorate,HRG UK,130427291INV,2.57,Not applicable,
Department for Business Innovation and Skills,Intellectual Property Office,09/07/2014,Travel and subsistence UK,Copyright and IP Enforcement Directorate,HRG UK,130439881INV,2.57,Not applicable,
Department for Business Innovation and Skills,Intellectual Property Office,09/07/2014,Travel and subsistence UK,Innovation Directorate,HRG UK,130624127INV,2.57,Not applicable,
Department for Business Innovation and Skills,Intellectual Property Office,09/07/2014,Travel and subsistence UK,Innovation Directorate,HRG UK,130624884INV,2.57,Not applicable,
Department for Business Innovation and Skills,Intellectual Property Office,09/07/2014,Travel and subsistence UK,Innovation Directorate,HRG UK,130484539INV,2.57,Not applicable,
Department for Business Innovation and Skills,Intellectual Property Office,09/07/2014,Travel and subsistence UK,Innovation Directorate,HRG UK,130497546INV,2.57,Not applicable,
Department for Business Innovation and Skills,Intellectual Property Office,09/07/2014,Travel and subsistence UK,Innovation Directorate,HRG UK,130497555INV,2.57,Not applicable,
Department for Business Innovation and Skills,Intellectual Property Office,09/07/2014,Travel and subsistence UK,Innovation Directorate,HRG UK,130511882INV,2.57,Not applicable,
Department for Business Innovation and Skills,Intellectual Property Office,09/07/2014,Travel and subsistence UK,Innovation Directorate,HRG UK,130352874INV,2.57,Not applicable,
Department for Business Innovation and Skills,Intellectual Property Office,09/07/2014,Travel and subsistence UK,Innovation Directorate,HRG UK,130511053INV,2.57,Not applicable,
Department for Business Innovation and Skills,Intellectual Property Office,09/07/2014,Travel and subsistence UK,Innovation Directorate,HRG UK,130397873INV,2.57,Not applicable,
Department for Business Innovation and Skills,Intellectual Property Office,09/07/2014,Travel and subsistence UK,Innovation Directorate,HRG UK,130427738INV,2.57,Not applicable,
Department for Business Innovation and Skills,Intellectual Property Office,09/07/2014,Travel and subsistence UK,Copyright and IP Enforcement Directorate,HRG UK,130427176INV,2.57,Not applicable,
Department for Business Innovation and Skills,Intellectual Property Office,09/07/2014,Travel and subsistence UK,International Policy Directorate,HRG UK,130607590INV,2.57,Not applicable,
Department for Business Innovation and Skills,Intellectual Property Office,09/07/2014,Travel and subsistence UK,International Policy Directorate,HRG UK,130608290INV,2.57,Not applicable,
Department for Business Innovation and Skills,Intellectual Property Office,09/07/2014,Travel and subsistence UK,International Policy Directorate,HRG UK,130497404INV,2.57,Not applicable,
Department for Business Innovation and Skills,Intellectual Property Office,09/07/2014,Travel and subsistence UK,Business Support Directorate,HRG UK,130366748INV,2.57,Not applicable,
Department for Business Innovation and Skills,Intellectual Property Office,09/07/2014,Travel and subsistence UK,Innovation Directorate,HRG UK,130624543INV,2.57,Not applicable,
Department for Business Innovation and Skills,Intellectual Property Office,09/07/2014,Travel and subsistence UK,Copyright and IP Enforcement Directorate,HRG UK,130366550INV,2.57,Not applicable,
Department for Business Innovation and Skills,Intellectual Property Office,09/07/2014,Travel and subsistence UK,Innovation Directorate,HRG UK,130484337INV,2.57,Not applicable,
Department for Business Innovation and Skills,Intellectual Property Office,09/07/2014,Travel and subsistence UK,Innovation Directorate,HRG UK,130484573INV,2.57,Not applicable,
Department for Business Innovation and Skills,Intellectual Property Office,09/07/2014,Travel and subsistence UK,Innovation Directorate,HRG UK,130497470INV,2.57,Not applicable,
Department for Business Innovation and Skills,Intellectual Property Office,09/07/2014,Travel and subsistence UK,Innovation Directorate,HRG UK,130397856INV,2.57,Not applicable,
Department for Business Innovation and Skills,Intellectual Property Office,09/07/2014,Travel and subsistence UK,Copyright and IP Enforcement Directorate,HRG UK,130353887INV,2.57,Not applicable,
Department for Business Innovation and Skills,Intellectual Property Office,09/07/2014,Travel and subsistence UK,Copyright and IP Enforcement Directorate,HRG UK,130581431INV,2.57,Not applicable,
Department for Business Innovation and Skills,Intellectual Property Office,09/07/2014,Travel and subsistence UK,Business Support Directorate,HRG UK,130339921INV,2.57,Not applicable,
Department for Business Innovation and Skills,Intellectual Property Office,09/07/2014,Travel and subsistence UK,Innovation Directorate,HRG UK,130470657INV,2.57,Not applicable,
Department for Business Innovation and Skills,Intellectual Property Office,09/07/2014,Travel and subsistence UK,Innovation Directorate,HRG UK,130484645INV,2.57,Not applicable,
Department for Business Innovation and Skills,Intellectual Property Office,09/07/2014,Travel and subsistence UK,Innovation Directorate,HRG UK,130528283INV,2.57,Not applicable,
Department for Business Innovation and Skills,Intellectual Property Office,09/07/2014,Travel and subsistence UK,Innovation Directorate,HRG UK,130511198INV,2.57,Not applicable,
Department for Business Innovation and Skills,Intellectual Property Office,09/07/2014,Travel and subsistence UK,Innovation Directorate,HRG UK,130529403INV,2.57,Not applicable,
Department for Business Innovation and Skills,Intellectual Property Office,09/07/2014,Travel and subsistence UK,Innovation Directorate,HRG UK,130570908INV,2.57,Not applicable,
Department for Business Innovation and Skills,Intellectual Property Office,09/07/2014,Travel and subsistence UK,Innovation Directorate,HRG UK,130427757INV,2.57,Not applicable,
Department for Business Innovation and Skills,Intellectual Property Office,09/07/2014,Travel and subsistence UK,Innovation Directorate,HRG UK,130440513INV,2.57,Not applicable,
Department for Business Innovation and Skills,Intellectual Property Office,09/07/2014,Travel and subsistence UK,International Policy Directorate,HRG UK,130484035INV,2.57,Not applicable,
Department for Business Innovation and Skills,Intellectual Property Office,09/07/2014,Travel and subsistence UK,Business Support Directorate,HRG UK,130379304INV,2.57,Not applicable,
Department for Business Innovation and Skills,Intellectual Property Office,09/07/2014,Travel and subsistence UK,International Policy Directorate,HRG UK,130379296INV,2.57,Not applicable,
Department for Business Innovation and Skills,Intellectual Property Office,09/07/2014,Travel and subsistence UK,International Policy Directorate,HRG UK,130590647INV,2.57,Not applicable,
Department for Business Innovation and Skills,Intellectual Property Office,09/07/2014,Travel and subsistence UK,Innovation Directorate,HRG UK,130570270INV,2.57,Not applicable,
Department for Business Innovation and Skills,Intellectual Property Office,09/07/2014,Travel and subsistence UK,Copyright and IP Enforcement Directorate,HRG UK,130625347INV,2.57,Not applicable,
Department for Business Innovation and Skills,Intellectual Property Office,09/07/2014,Travel and subsistence UK,Innovation Directorate,HRG UK,130469992INV,2.57,Not applicable,
Department for Business Innovation and Skills,Intellectual Property Office,09/07/2014,Travel and subsistence UK,Innovation Directorate,HRG UK,130497482INV,2.57,Not applicable,
Department for Business Innovation and Skills,Intellectual Property Office,09/07/2014,Travel and subsistence UK,Innovation Directorate,HRG UK,130352858INV,2.57,Not applicable,
Department for Business Innovation and Skills,Intellectual Property Office,09/07/2014,Travel and subsistence UK,Innovation Directorate,HRG UK,130511192INV,2.57,Not applicable,
Department for Business Innovation and Skills,Intellectual Property Office,09/07/2014,Travel and subsistence UK,Innovation Directorate,HRG UK,130511209INV,2.57,Not applicable,
Department for Business Innovation and Skills,Intellectual Property Office,09/07/2014,Travel and subsistence UK,Innovation Directorate,HRG UK,130589274INV,2.57,Not applicable,
Department for Business Innovation and Skills,Intellectual Property Office,09/07/2014,Travel and subsistence UK,Copyright and IP Enforcement Directorate,HRG UK,130529366INV,2.57,Not applicable,
Department for Business Innovation and Skills,Intellectual Property Office,09/07/2014,Travel and subsistence UK,International Policy Directorate,HRG UK,130354164INV,2.57,Not applicable,
Department for Business Innovation and Skills,Intellectual Property Office,09/07/2014,Travel and subsistence UK,Innovation Directorate,HRG UK,130484654INV,2.57,Not applicable,
Department for Business Innovation and Skills,Intellectual Property Office,09/07/2014,Travel and subsistence UK,Innovation Directorate,HRG UK,130485102INV,2.57,Not applicable,
Department for Business Innovation and Skills,Intellectual Property Office,09/07/2014,Travel and subsistence UK,Innovation Directorate,HRG UK,130511250INV,2.57,Not applicable,
Department for Business Innovation and Skills,Intellectual Property Office,09/07/2014,Travel and subsistence UK,Innovation Directorate,HRG UK,130498296INV,2.57,Not applicable,
Department for Business Innovation and Skills,Intellectual Property Office,09/07/2014,Travel and subsistence UK,Innovation Directorate,HRG UK,130529330INV,2.57,Not applicable,
Department for Business Innovation and Skills,Intellectual Property Office,09/07/2014,Travel and subsistence UK,Innovation Directorate,HRG UK,130352807INV,2.57,Not applicable,
Department for Business Innovation and Skills,Intellectual Property Office,09/07/2014,Travel and subsistence UK,Innovation Directorate,HRG UK,130570933INV,2.57,Not applicable,
Department for Business Innovation and Skills,Intellectual Property Office,09/07/2014,Travel and subsistence UK,Innovation Directorate,HRG UK,130427728INV,2.57,Not applicable,
Department for Business Innovation and Skills,Intellectual Property Office,09/07/2014,Travel and subsistence UK,Trade Marks Directorate,HRG UK,130427368INV,2.57,Not applicable,
Department for Business Innovation and Skills,Intellectual Property Office,09/07/2014,Travel and subsistence UK,International Policy Directorate,HRG UK,130485399INV,2.57,Not applicable,
Department for Business Innovation and Skills,Intellectual Property Office,09/07/2014,Travel and subsistence UK,Innovation Directorate,HRG UK,130570270,3.08,Not applicable,
Department for Business Innovation and Skills,Intellectual Property Office,09/07/2014,Travel and subsistence UK,Copyright and IP Enforcement Directorate,HRG UK,130366550,3.08,Not applicable,
Department for Business Innovation and Skills,Intellectual Property Office,09/07/2014,Travel and subsistence UK,Innovation Directorate,HRG UK,130624127,3.08,Not applicable,
Department for Business Innovation and Skills,Intellectual Property Office,09/07/2014,Travel and subsistence UK,Innovation Directorate,HRG UK,130469992,3.08,Not applicable,
Department for Business Innovation and Skills,Intellectual Property Office,09/07/2014,Travel and subsistence UK,Innovation Directorate,HRG UK,130511053,3.08,Not applicable,
Department for Business Innovation and Skills,Intellectual Property Office,09/07/2014,Travel and subsistence UK,Innovation Directorate,HRG UK,130427291,3.08,Not applicable,
Department for Business Innovation and Skills,Intellectual Property Office,09/07/2014,Travel and subsistence UK,Innovation Directorate,HRG UK,130484337,3.08,Not applicable,
Department for Business Innovation and Skills,Intellectual Property Office,09/07/2014,Travel and subsistence UK,Innovation Directorate,HRG UK,130427747,3.08,Not applicable,
Department for Business Innovation and Skills,Intellectual Property Office,09/07/2014,Travel and subsistence UK,Innovation Directorate,HRG UK,130427757,3.08,Not applicable,
Department for Business Innovation and Skills,Intellectual Property Office,09/07/2014,Travel and subsistence UK,Innovation Directorate,HRG UK,130511249,3.08,Not applicable,
Department for Business Innovation and Skills,Intellectual Property Office,09/07/2014,Travel and subsistence UK,International Policy Directorate,HRG UK,130608290,3.08,Not applicable,
Department for Business Innovation and Skills,Intellectual Property Office,09/07/2014,Travel and subsistence UK,Innovation Directorate,HRG UK,130352785,3.08,Not applicable,
Department for Business Innovation and Skills,Intellectual Property Office,09/07/2014,Travel and subsistence UK,Innovation Directorate,HRG UK,130624543,3.08,Not applicable,
Department for Business Innovation and Skills,Intellectual Property Office,09/07/2014,Travel and subsistence UK,Innovation Directorate,HRG UK,130470657,3.08,Not applicable,
Department for Business Innovation and Skills,Intellectual Property Office,09/07/2014,Travel and subsistence UK,Innovation Directorate,HRG UK,130543750,3.08,Not applicable,
Department for Business Innovation and Skills,Intellectual Property Office,09/07/2014,Travel and subsistence UK,Copyright and IP Enforcement Directorate,HRG UK,130625347,3.08,Not applicable,
Department for Business Innovation and Skills,Intellectual Property Office,09/07/2014,Travel and subsistence UK,Copyright and IP Enforcement Directorate,HRG UK,130367297,3.08,Not applicable,
Department for Business Innovation and Skills,Intellectual Property Office,09/07/2014,Travel and subsistence UK,Innovation Directorate,HRG UK,130528283,3.08,Not applicable,
Department for Business Innovation and Skills,Intellectual Property Office,09/07/2014,Travel and subsistence UK,Innovation Directorate,HRG UK,130608234,3.08,Not applicable,
Department for Business Innovation and Skills,Intellectual Property Office,09/07/2014,Travel and subsistence UK,Innovation Directorate,HRG UK,130589274,3.08,Not applicable,
Department for Business Innovation and Skills,Intellectual Property Office,09/07/2014,Travel and subsistence UK,Innovation Directorate,HRG UK,130484645,3.08,Not applicable,
Department for Business Innovation and Skills,Intellectual Property Office,09/07/2014,Travel and subsistence UK,Innovation Directorate,HRG UK,130484654,3.08,Not applicable,
Department for Business Innovation and Skills,Intellectual Property Office,09/07/2014,Travel and subsistence UK,Innovation Directorate,HRG UK,130484573,3.08,Not applicable,
Department for Business Innovation and Skills,Intellectual Property Office,09/07/2014,Travel and subsistence UK,Innovation Directorate,HRG UK,130511250,3.08,Not applicable,
Department for Business Innovation and Skills,Intellectual Property Office,09/07/2014,Travel and subsistence UK,Copyright and IP Enforcement Directorate,HRG UK,130427176,3.08,Not applicable,
Department for Business Innovation and Skills,Intellectual Property Office,09/07/2014,Travel and subsistence UK,Business Support Directorate,HRG UK,130366748,3.08,Not applicable,
Department for Business Innovation and Skills,Intellectual Property Office,09/07/2014,Travel and subsistence UK,International Policy Directorate,HRG UK,130354164,3.08,Not applicable,
Department for Business Innovation and Skills,Intellectual Property Office,09/07/2014,Travel and subsistence UK,Innovation Directorate,HRG UK,130397128,3.08,Not applicable,
Department for Business Innovation and Skills,Intellectual Property Office,09/07/2014,Travel and subsistence UK,Innovation Directorate,HRG UK,130529330,3.08,Not applicable,
Department for Business Innovation and Skills,Intellectual Property Office,09/07/2014,Travel and subsistence UK,Innovation Directorate,HRG UK,130529403,3.08,Not applicable,
Department for Business Innovation and Skills,Intellectual Property Office,09/07/2014,Travel and subsistence UK,Innovation Directorate,HRG UK,130352807,3.08,Not applicable,
Department for Business Innovation and Skills,Intellectual Property Office,09/07/2014,Travel and subsistence UK,Innovation Directorate,HRG UK,130511178,3.08,Not applicable,
Department for Business Innovation and Skills,Intellectual Property Office,09/07/2014,Travel and subsistence UK,Innovation Directorate,HRG UK,130511192,3.08,Not applicable,
Department for Business Innovation and Skills,Intellectual Property Office,09/07/2014,Travel and subsistence UK,Innovation Directorate,HRG UK,130511205,3.08,Not applicable,
Department for Business Innovation and Skills,Intellectual Property Office,09/07/2014,Travel and subsistence UK,Copyright and IP Enforcement Directorate,HRG UK,130498371,3.08,Not applicable,
Department for Business Innovation and Skills,Intellectual Property Office,09/07/2014,Travel and subsistence UK,International Policy Directorate,HRG UK,130352937,3.08,Not applicable,
Department for Business Innovation and Skills,Intellectual Property Office,09/07/2014,Travel and subsistence UK,Copyright and IP Enforcement Directorate,HRG UK,130497326,3.08,Not applicable,
Department for Business Innovation and Skills,Intellectual Property Office,09/07/2014,Travel and subsistence UK,Innovation Directorate,HRG UK,130570933,3.08,Not applicable,
Department for Business Innovation and Skills,Intellectual Property Office,09/07/2014,Travel and subsistence UK,Innovation Directorate,HRG UK,130352858,3.08,Not applicable,
Department for Business Innovation and Skills,Intellectual Property Office,09/07/2014,Travel and subsistence UK,Innovation Directorate,HRG UK,130352874,3.08,Not applicable,
Department for Business Innovation and Skills,Intellectual Property Office,09/07/2014,Travel and subsistence UK,Innovation Directorate,HRG UK,130511198,3.08,Not applicable,
Department for Business Innovation and Skills,Intellectual Property Office,09/07/2014,Travel and subsistence UK,Innovation Directorate,HRG UK,130498296,3.08,Not applicable,
Department for Business Innovation and Skills,Intellectual Property Office,09/07/2014,Travel and subsistence UK,Copyright and IP Enforcement Directorate,HRG UK,130544596,3.08,Not applicable,
Department for Business Innovation and Skills,Intellectual Property Office,09/07/2014,Travel and subsistence UK,Copyright and IP Enforcement Directorate,HRG UK,130581431,3.08,Not applicable,
Department for Business Innovation and Skills,Intellectual Property Office,09/07/2014,Travel and subsistence UK,International Policy Directorate,HRG UK,130497404,3.08,Not applicable,
Department for Business Innovation and Skills,Intellectual Property Office,09/07/2014,Travel and subsistence UK,Business Support Directorate,HRG UK,130339921,3.08,Not applicable,
Department for Business Innovation and Skills,Intellectual Property Office,09/07/2014,Travel and subsistence UK,International Policy Directorate,HRG UK,130379296,3.08,Not applicable,
Department for Business Innovation and Skills,Intellectual Property Office,09/07/2014,Travel and subsistence UK,International Policy Directorate,HRG UK,130590647,3.08,Not applicable,
Department for Business Innovation and Skills,Intellectual Property Office,09/07/2014,Travel and subsistence UK,Innovation Directorate,HRG UK,130497546,3.08,Not applicable,
Department for Business Innovation and Skills,Intellectual Property Office,09/07/2014,Travel and subsistence UK,Innovation Directorate,HRG UK,130498312,3.08,Not applicable,
Department for Business Innovation and Skills,Intellectual Property Office,09/07/2014,Travel and subsistence UK,Innovation Directorate,HRG UK,130485102,3.08,Not applicable,
Department for Business Innovation and Skills,Intellectual Property Office,09/07/2014,Travel and subsistence UK,Innovation Directorate,HRG UK,130440513,3.08,Not applicable,
Department for Business Innovation and Skills,Intellectual Property Office,09/07/2014,Travel and subsistence UK,Innovation Directorate,HRG UK,130511209,3.08,Not applicable,
Department for Business Innovation and Skills,Intellectual Property Office,09/07/2014,Travel and subsistence UK,Business Support Directorate,HRG UK,130366555,3.08,Not applicable,
Department for Business Innovation and Skills,Intellectual Property Office,09/07/2014,Travel and subsistence UK,International Policy Directorate,HRG UK,130497458,3.08,Not applicable,
Department for Business Innovation and Skills,Intellectual Property Office,09/07/2014,Travel and subsistence UK,Innovation Directorate,HRG UK,130497482,3.08,Not applicable,
Department for Business Innovation and Skills,Intellectual Property Office,09/07/2014,Travel and subsistence UK,Innovation Directorate,HRG UK,130497555,3.08,Not applicable,
Department for Business Innovation and Skills,Intellectual Property Office,09/07/2014,Travel and subsistence UK,Innovation Directorate,HRG UK,130484539,3.08,Not applicable,
Department for Business Innovation and Skills,Intellectual Property Office,09/07/2014,Travel and subsistence UK,Innovation Directorate,HRG UK,130427728,3.08,Not applicable,
Department for Business Innovation and Skills,Intellectual Property Office,09/07/2014,Travel and subsistence UK,Innovation Directorate,HRG UK,130511882,3.08,Not applicable,
Department for Business Innovation and Skills,Intellectual Property Office,09/07/2014,Travel and subsistence UK,Copyright and IP Enforcement Directorate,HRG UK,130439881,3.08,Not applicable,
Department for Business Innovation and Skills,Intellectual Property Office,09/07/2014,Travel and subsistence UK,International Policy Directorate,HRG UK,130607590,3.08,Not applicable,
Department for Business Innovation and Skills,Intellectual Property Office,09/07/2014,Travel and subsistence UK,International Policy Directorate,HRG UK,130485399,3.08,Not applicable,
Department for Business Innovation and Skills,Intellectual Property Office,09/07/2014,Travel and subsistence UK,International Policy Directorate,HRG UK,130447609,3.08,Not applicable,
Department for Business Innovation and Skills,Intellectual Property Office,09/07/2014,Travel and subsistence UK,Business Support Directorate,HRG UK,130379304,3.08,Not applicable,
Department for Business Innovation and Skills,Intellectual Property Office,09/07/2014,Travel and subsistence UK,International Policy Directorate,HRG UK,130469948,3.08,Not applicable,
Department for Business Innovation and Skills,Intellectual Property Office,09/07/2014,Travel and subsistence UK,Copyright and IP Enforcement Directorate,HRG UK,130366769,3.08,Not applicable,
Department for Business Innovation and Skills,Intellectual Property Office,09/07/2014,Travel and subsistence UK,Innovation Directorate,HRG UK,130570908,3.08,Not applicable,
Department for Business Innovation and Skills,Intellectual Property Office,09/07/2014,Travel and subsistence UK,Innovation Directorate,HRG UK,130469995,3.08,Not applicable,
Department for Business Innovation and Skills,Intellectual Property Office,09/07/2014,Travel and subsistence UK,Innovation Directorate,HRG UK,130427738,3.08,Not applicable,
Department for Business Innovation and Skills,Intellectual Property Office,09/07/2014,Travel and subsistence UK,International Policy Directorate,HRG UK,130497376,3.08,Not applicable,
Department for Business Innovation and Skills,Intellectual Property Office,09/07/2014,Travel and subsistence UK,Copyright and IP Enforcement Directorate,HRG UK,130396588,3.08,Not applicable,
Department for Business Innovation and Skills,Intellectual Property Office,09/07/2014,Travel and subsistence UK,Innovation Directorate,HRG UK,130397856,3.08,Not applicable,
Department for Business Innovation and Skills,Intellectual Property Office,09/07/2014,Travel and subsistence UK,Innovation Directorate,HRG UK,130397873,3.08,Not applicable,
Department for Business Innovation and Skills,Intellectual Property Office,09/07/2014,Travel and subsistence UK,Innovation Directorate,HRG UK,130570944,3.08,Not applicable,
Department for Business Innovation and Skills,Intellectual Property Office,09/07/2014,Travel and subsistence UK,Innovation Directorate,HRG UK,130624135,3.08,Not applicable,
Department for Business Innovation and Skills,Intellectual Property Office,09/07/2014,Travel and subsistence UK,Innovation Directorate,HRG UK,130624884,3.08,Not applicable,
Department for Business Innovation and Skills,Intellectual Property Office,09/07/2014,Travel and subsistence UK,Innovation Directorate,HRG UK,130589388,3.08,Not applicable,
Department for Business Innovation and Skills,Intellectual Property Office,09/07/2014,Travel and subsistence UK,Innovation Directorate,HRG UK,130497470,3.08,Not applicable,
Department for Business Innovation and Skills,Intellectual Property Office,09/07/2014,Travel and subsistence UK,Innovation Directorate,HRG UK,130440185,3.08,Not applicable,
Department for Business Innovation and Skills,Intellectual Property Office,09/07/2014,Travel and subsistence UK,Trade Marks Directorate,HRG UK,130427368,3.08,Not applicable,
Department for Business Innovation and Skills,Intellectual Property Office,09/07/2014,Travel and subsistence UK,Copyright and IP Enforcement Directorate,HRG UK,130529366,3.08,Not applicable,
Department for Business Innovation and Skills,Intellectual Property Office,09/07/2014,Travel and subsistence UK,Copyright and IP Enforcement Directorate,HRG UK,130353887,3.08,Not applicable,
Department for Business Innovation and Skills,Intellectual Property Office,09/07/2014,Travel and subsistence UK,International Policy Directorate,HRG UK,130484035,3.08,Not applicable,
Department for Business Innovation and Skills,Intellectual Property Office,30/07/2014,Travel and subsistence UK,Innovation Directorate,Leasedrive Velo Rental Management Ltd,RHI01204958,3.83,Not applicable,
Department for Business Innovation and Skills,Intellectual Property Office,09/07/2014,Travel and subsistence UK,Copyright and IP Enforcement Directorate,HRG UK,130598207REV,3.85,Not applicable,
Department for Business Innovation and Skills,Intellectual Property Office,14/07/2014,Travel and subsistence UK,Copyright and IP Enforcement Directorate,Personal expenses name witheld,ER120782,4.25,Not applicable,
Department for Business Innovation and Skills,Intellectual Property Office,11/07/2014,Travel and subsistence UK,Copyright and IP Enforcement Directorate,Personal expenses name witheld,ER120043,4.25,Not applicable,
Department for Business Innovation and Skills,Intellectual Property Office,11/07/2014,Travel and subsistence UK,Copyright and IP Enforcement Directorate,Personal expenses name witheld,ER120182,4.25,Not applicable,
Department for Business Innovation and Skills,Intellectual Property Office,11/07/2014,Travel and subsistence UK,Copyright and IP Enforcement Directorate,Personal expenses name witheld,ER120044,4.25,Not applicable,
Department for Business Innovation and Skills,Intellectual Property Office,11/07/2014,Travel and subsistence UK,Copyright and IP Enforcement Directorate,Personal expenses name witheld,ER120183,4.25,Not applicable,
Department for Business Innovation and Skills,Intellectual Property Office,14/07/2014,Travel and subsistence UK,Copyright and IP Enforcement Directorate,Personal expenses name witheld,ER120682,4.25,Not applicable,
Department for Business Innovation and Skills,Intellectual Property Office,11/07/2014,Travel and subsistence UK,Copyright and IP Enforcement Directorate,Personal expenses name witheld,ER120047,4.25,Not applicable,
Department for Business Innovation and Skills,Intellectual Property Office,09/07/2014,Travel and subsistence UK,Copyright and IP Enforcement Directorate,HRG UK,130413711INV,5.14,Not applicable,
Department for Business Innovation and Skills,Intellectual Property Office,09/07/2014,Travel and subsistence UK,Finance Directorate,HRG UK,130543665INV,5.14,Not applicable,
Department for Business Innovation and Skills,Intellectual Property Office,10/07/2014,Travel and subsistence UK,Copyright and IP Enforcement Directorate,Personal expenses name witheld,ER120045,5.50,Not applicable,
Department for Business Innovation and Skills,Intellectual Property Office,14/07/2014,Travel and subsistence UK,Copyright and IP Enforcement Directorate,Personal expenses name witheld,ER120783,5.60,Not applicable,
Department for Business Innovation and Skills,Intellectual Property Office,09/07/2014,Travel and subsistence UK,Copyright and IP Enforcement Directorate,HRG UK,130609048INV,5.65,Not applicable,
Department for Business Innovation and Skills,Intellectual Property Office,09/07/2014,Travel and subsistence UK,Copyright and IP Enforcement Directorate,HRG UK,130571150INV,5.65,Not applicable,
Department for Business Innovation and Skills,Intellectual Property Office,09/07/2014,Travel and subsistence UK,Copyright and IP Enforcement Directorate,HRG UK,130571154INV,5.65,Not applicable,
Department for Business Innovation and Skills,Intellectual Property Office,09/07/2014,Travel and subsistence UK,Copyright and IP Enforcement Directorate,HRG UK,130571152INV,5.65,Not applicable,
Department for Business Innovation and Skills,Intellectual Property Office,09/07/2014,Travel and subsistence UK,Copyright and IP Enforcement Directorate,HRG UK,130571155INV,5.65,Not applicable,
Department for Business Innovation and Skills,Intellectual Property Office,09/07/2014,Travel and subsistence UK,Copyright and IP Enforcement Directorate,HRG UK,130571151INV,5.65,Not applicable,
Department for Business Innovation and Skills,Intellectual Property Office,09/07/2014,Travel and subsistence UK,Copyright and IP Enforcement Directorate,HRG UK,130571156INV,5.65,Not applicable,
Department for Business Innovation and Skills,Intellectual Property Office,09/07/2014,Travel and subsistence UK,Copyright and IP Enforcement Directorate,HRG UK,130571153INV,5.65,Not applicable,
Department for Business Innovation and Skills,Intellectual Property Office,09/07/2014,Travel and subsistence UK,Copyright and IP Enforcement Directorate,HRG UK,130543591INV,5.65,Not applicable,
Department for Business Innovation and Skills,Intellectual Property Office,09/07/2014,Travel and subsistence UK,Innovation Directorate,HRG UK,130571364INV,5.65,Not applicable,
Department for Business Innovation and Skills,Intellectual Property Office,09/07/2014,Travel and subsistence UK,Innovation Directorate,HRG UK,130571372INV,5.65,Not applicable,
Department for Business Innovation and Skills,Intellectual Property Office,09/07/2014,Travel and subsistence UK,Copyright and IP Enforcement Directorate,HRG UK,130571157INV,5.65,Not applicable,
Department for Business Innovation and Skills,Intellectual Property Office,16/07/2014,Travel and subsistence UK,"People, Property and Services Directorate",Veezu Ltd T/A Dragon Taxis (Newport),1930,6.00,Not applicable,
Department for Business Innovation and Skills,Intellectual Property Office,09/07/2014,Travel and subsistence UK,Finance Directorate,HRG UK,130543665,6.17,Not applicable,
Department for Business Innovation and Skills,Intellectual Property Office,09/07/2014,Travel and subsistence UK,Copyright and IP Enforcement Directorate,HRG UK,130413711,6.17,Not applicable,
Department for Business Innovation and Skills,Intellectual Property Office,11/07/2014,Travel and subsistence UK,"People, Property and Services Directorate",Personal expenses name witheld,ER118382,6.30,Not applicable,
Department for Business Innovation and Skills,Intellectual Property Office,21/07/2014,Travel and subsistence UK,"People, Property and Services Directorate",Personal expenses name witheld,ER120902,6.30,Not applicable,
Department for Business Innovation and Skills,Intellectual Property Office,16/07/2014,Travel and subsistence UK,Business Support Directorate,Veezu Ltd T/A Dragon Taxis (Newport),1930,6.50,Not applicable,
Department for Business Innovation and Skills,Intellectual Property Office,16/07/2014,Travel and subsistence UK,Finance Directorate,Veezu Ltd T/A Dragon Taxis (Newport),1930,6.50,Not applicable,
Department for Business Innovation and Skills,Intellectual Property Office,16/07/2014,Travel and subsistence UK,Copyright and IP Enforcement Directorate,Veezu Ltd T/A Dragon Taxis (Newport),1930,6.50,Not applicable,
Department for Business Innovation and Skills,Intellectual Property Office,09/07/2014,Travel and subsistence UK,Innovation Directorate,HRG UK,130339134INV,6.68,Not applicable,
Department for Business Innovation and Skills,Intellectual Property Office,09/07/2014,Travel and subsistence UK,Innovation Directorate,HRG UK,130498401INV,6.68,Not applicable,
Department for Business Innovation and Skills,Intellectual Property Office,09/07/2014,Travel and subsistence UK,Copyright and IP Enforcement Directorate,HRG UK,130379950INV,6.68,Not applicable,
Department for Business Innovation and Skills,Intellectual Property Office,09/07/2014,Travel and subsistence UK,Innovation Directorate,HRG UK,130353409INV,6.68,Not applicable,
Department for Business Innovation and Skills,Intellectual Property Office,09/07/2014,Travel and subsistence UK,Innovation Directorate,HRG UK,130353411INV,6.68,Not applicable,
Department for Business Innovation and Skills,Intellectual Property Office,09/07/2014,Travel and subsistence UK,Copyright and IP Enforcement Directorate,HRG UK,130367109INV,6.68,Not applicable,
Department for Business Innovation and Skills,Intellectual Property Office,09/07/2014,Travel and subsistence UK,Copyright and IP Enforcement Directorate,HRG UK,130367127INV,6.68,Not applicable,
Department for Business Innovation and Skills,Intellectual Property Office,09/07/2014,Travel and subsistence UK,International Policy Directorate,HRG UK,130339219INV,6.68,Not applicable,
Department for Business Innovation and Skills,Intellectual Property Office,09/07/2014,Travel and subsistence UK,International Policy Directorate,HRG UK,130339220INV,6.68,Not applicable,
Department for Business Innovation and Skills,Intellectual Property Office,09/07/2014,Travel and subsistence UK,International Policy Directorate,HRG UK,130414403INV,6.68,Not applicable,
Department for Business Innovation and Skills,Intellectual Property Office,09/07/2014,Travel and subsistence UK,Innovation Directorate,HRG UK,130353418INV,6.68,Not applicable,
Department for Business Innovation and Skills,Intellectual Property Office,09/07/2014,Travel and subsistence UK,Copyright and IP Enforcement Directorate,HRG UK,130367208INV,6.68,Not applicable,
Department for Business Innovation and Skills,Intellectual Property Office,09/07/2014,Travel and subsistence UK,Innovation Directorate,HRG UK,130353391INV,6.68,Not applicable,
Department for Business Innovation and Skills,Intellectual Property Office,09/07/2014,Travel and subsistence UK,Innovation Directorate,HRG UK,130353723INV,6.68,Not applicable,
Department for Business Innovation and Skills,Intellectual Property Office,09/07/2014,Travel and subsistence UK,Innovation Directorate,HRG UK,130448599INV,6.68,Not applicable,
Department for Business Innovation and Skills,Intellectual Property Office,09/07/2014,Travel and subsistence UK,Innovation Directorate,HRG UK,130353724INV,6.68,Not applicable,
Department for Business Innovation and Skills,Intellectual Property Office,09/07/2014,Travel and subsistence UK,Innovation Directorate,HRG UK,130448579INV,6.68,Not applicable,
Department for Business Innovation and Skills,Intellectual Property Office,09/07/2014,Travel and subsistence UK,Copyright and IP Enforcement Directorate,HRG UK,130367107INV,6.68,Not applicable,
Department for Business Innovation and Skills,Intellectual Property Office,09/07/2014,Travel and subsistence UK,Copyright and IP Enforcement Directorate,HRG UK,130511400INV,6.68,Not applicable,
Department for Business Innovation and Skills,Intellectual Property Office,09/07/2014,Travel and subsistence UK,Copyright and IP Enforcement Directorate,HRG UK,130379951INV,6.68,Not applicable,
Department for Business Innovation and Skills,Intellectual Property Office,09/07/2014,Travel and subsistence UK,Copyright and IP Enforcement Directorate,HRG UK,130367140INV,6.68,Not applicable,
Department for Business Innovation and Skills,Intellectual Property Office,09/07/2014,Travel and subsistence UK,Copyright and IP Enforcement Directorate,HRG UK,130367156INV,6.68,Not applicable,
Department for Business Innovation and Skills,Intellectual Property Office,09/07/2014,Travel and subsistence UK,Copyright and IP Enforcement Directorate,HRG UK,130367159INV,6.68,Not applicable,
Department for Business Innovation and Skills,Intellectual Property Office,09/07/2014,Travel and subsistence UK,International Policy Directorate,HRG UK,130498440INV,6.68,Not applicable,
Department for Business Innovation and Skills,Intellectual Property Office,09/07/2014,Travel and subsistence UK,Innovation Directorate,HRG UK,130339135INV,6.68,Not applicable,
Department for Business Innovation and Skills,Intellectual Property Office,09/07/2014,Travel and subsistence UK,Innovation Directorate,HRG UK,130353713INV,6.68,Not applicable,
Department for Business Innovation and Skills,Intellectual Property Office,09/07/2014,Travel and subsistence UK,Copyright and IP Enforcement Directorate,HRG UK,130367164INV,6.68,Not applicable,
Department for Business Innovation and Skills,Intellectual Property Office,09/07/2014,Travel and subsistence UK,Innovation Directorate,HRG UK,130571364,6.78,Not applicable,
Department for Business Innovation and Skills,Intellectual Property Office,09/07/2014,Travel and subsistence UK,Copyright and IP Enforcement Directorate,HRG UK,130571150,6.78,Not applicable,
Department for Business Innovation and Skills,Intellectual Property Office,09/07/2014,Travel and subsistence UK,Copyright and IP Enforcement Directorate,HRG UK,130571157,6.78,Not applicable,
Department for Business Innovation and Skills,Intellectual Property Office,09/07/2014,Travel and subsistence UK,Copyright and IP Enforcement Directorate,HRG UK,130609048,6.78,Not applicable,
Department for Business Innovation and Skills,Intellectual Property Office,09/07/2014,Travel and subsistence UK,Copyright and IP Enforcement Directorate,HRG UK,130571153,6.78,Not applicable,
Department for Business Innovation and Skills,Intellectual Property Office,09/07/2014,Travel and subsistence UK,Copyright and IP Enforcement Directorate,HRG UK,130571151,6.78,Not applicable,
Department for Business Innovation and Skills,Intellectual Property Office,09/07/2014,Travel and subsistence UK,Copyright and IP Enforcement Directorate,HRG UK,130571152,6.78,Not applicable,
Department for Business Innovation and Skills,Intellectual Property Office,09/07/2014,Travel and subsistence UK,Copyright and IP Enforcement Directorate,HRG UK,130571156,6.78,Not applicable,
Department for Business Innovation and Skills,Intellectual Property Office,09/07/2014,Travel and subsistence UK,Copyright and IP Enforcement Directorate,HRG UK,130543591,6.78,Not applicable,
Department for Business Innovation and Skills,Intellectual Property Office,09/07/2014,Travel and subsistence UK,Innovation Directorate,HRG UK,130571372,6.78,Not applicable,
Department for Business Innovation and Skills,Intellectual Property Office,09/07/2014,Travel and subsistence UK,Copyright and IP Enforcement Directorate,HRG UK,130571155,6.78,Not applicable,
Department for Business Innovation and Skills,Intellectual Property Office,09/07/2014,Travel and subsistence UK,Copyright and IP Enforcement Directorate,HRG UK,130571154,6.78,Not applicable,
Department for Business Innovation and Skills,Intellectual Property Office,23/07/2014,Travel and subsistence UK,Copyright and IP Enforcement Directorate,Personal expenses name witheld,ER121382,7.00,Not applicable,
Department for Business Innovation and Skills,Intellectual Property Office,23/07/2014,Travel and subsistence UK,Innovation Directorate,Personal expenses name witheld,ER121406,7.50,Not applicable,
Department for Business Innovation and Skills,Intellectual Property Office,09/07/2014,Travel and subsistence UK,Business Support Directorate,Personal expenses name witheld,ER119942,7.60,Not applicable,
Department for Business Innovation and Skills,Intellectual Property Office,24/07/2014,Travel and subsistence UK,"People, Property and Services Directorate",Personal expenses name witheld,ER121448,7.70,Not applicable,
Department for Business Innovation and Skills,Intellectual Property Office,09/07/2014,Travel and subsistence UK,Innovation Directorate,HRG UK,130422390INV,7.78,Not applicable,
Department for Business Innovation and Skills,Intellectual Property Office,09/07/2014,Travel and subsistence UK,Innovation Directorate,HRG UK,130635766INV,7.78,Not applicable,
Department for Business Innovation and Skills,Intellectual Property Office,09/07/2014,Travel and subsistence UK,Innovation Directorate,HRG UK,130436466INV,7.78,Not applicable,
Department for Business Innovation and Skills,Intellectual Property Office,09/07/2014,Travel and subsistence UK,Innovation Directorate,HRG UK,130635766,7.79,Not applicable,
Department for Business Innovation and Skills,Intellectual Property Office,09/07/2014,Travel and subsistence UK,Innovation Directorate,HRG UK,130422390,7.79,Not applicable,
Department for Business Innovation and Skills,Intellectual Property Office,09/07/2014,Travel and subsistence UK,Innovation Directorate,HRG UK,130436466,7.79,Not applicable,
Department for Business Innovation and Skills,Intellectual Property Office,09/07/2014,Travel and subsistence UK,Patents Directorate,HRG UK,130634057INV,7.88,Not applicable,
Department for Business Innovation and Skills,Intellectual Property Office,09/07/2014,Travel and subsistence UK,Patents Directorate,HRG UK,130634057,7.89,Not applicable,
Department for Business Innovation and Skills,Intellectual Property Office,09/07/2014,Travel and subsistence UK,Innovation Directorate,HRG UK,130353418,8.02,Not applicable,
Department for Business Innovation and Skills,Intellectual Property Office,09/07/2014,Travel and subsistence UK,Innovation Directorate,HRG UK,130448579,8.02,Not applicable,
Department for Business Innovation and Skills,Intellectual Property Office,09/07/2014,Travel and subsistence UK,Copyright and IP Enforcement Directorate,HRG UK,130367107,8.02,Not applicable,
Department for Business Innovation and Skills,Intellectual Property Office,09/07/2014,Travel and subsistence UK,International Policy Directorate,HRG UK,130498440,8.02,Not applicable,
Department for Business Innovation and Skills,Intellectual Property Office,09/07/2014,Travel and subsistence UK,Copyright and IP Enforcement Directorate,HRG UK,130367164,8.02,Not applicable,
Department for Business Innovation and Skills,Intellectual Property Office,09/07/2014,Travel and subsistence UK,International Policy Directorate,HRG UK,130414403,8.02,Not applicable,
Department for Business Innovation and Skills,Intellectual Property Office,09/07/2014,Travel and subsistence UK,Copyright and IP Enforcement Directorate,HRG UK,130379950,8.02,Not applicable,
Department for Business Innovation and Skills,Intellectual Property Office,09/07/2014,Travel and subsistence UK,Copyright and IP Enforcement Directorate,HRG UK,130511400,8.02,Not applicable,
Department for Business Innovation and Skills,Intellectual Property Office,09/07/2014,Travel and subsistence UK,Copyright and IP Enforcement Directorate,HRG UK,130367109,8.02,Not applicable,
Department for Business Innovation and Skills,Intellectual Property Office,09/07/2014,Travel and subsistence UK,Copyright and IP Enforcement Directorate,HRG UK,130367208,8.02,Not applicable,
Department for Business Innovation and Skills,Intellectual Property Office,09/07/2014,Travel and subsistence UK,Innovation Directorate,HRG UK,130353411,8.02,Not applicable,
Department for Business Innovation and Skills,Intellectual Property Office,09/07/2014,Travel and subsistence UK,Copyright and IP Enforcement Directorate,HRG UK,130367140,8.02,Not applicable,
Department for Business Innovation and Skills,Intellectual Property Office,09/07/2014,Travel and subsistence UK,Copyright and IP Enforcement Directorate,HRG UK,130379951,8.02,Not applicable,
Department for Business Innovation and Skills,Intellectual Property Office,09/07/2014,Travel and subsistence UK,Innovation Directorate,HRG UK,130353724,8.02,Not applicable,
Department for Business Innovation and Skills,Intellectual Property Office,09/07/2014,Travel and subsistence UK,Innovation Directorate,HRG UK,130353391,8.02,Not applicable,
Department for Business Innovation and Skills,Intellectual Property Office,09/07/2014,Travel and subsistence UK,Innovation Directorate,HRG UK,130353409,8.02,Not applicable,
Department for Business Innovation and Skills,Intellectual Property Office,09/07/2014,Travel and subsistence UK,Innovation Directorate,HRG UK,130353723,8.02,Not applicable,
Department for Business Innovation and Skills,Intellectual Property Office,09/07/2014,Travel and subsistence UK,Innovation Directorate,HRG UK,130448599,8.02,Not applicable,
Department for Business Innovation and Skills,Intellectual Property Office,09/07/2014,Travel and subsistence UK,International Policy Directorate,HRG UK,130339219,8.02,Not applicable,
Department for Business Innovation and Skills,Intellectual Property Office,09/07/2014,Travel and subsistence UK,Copyright and IP Enforcement Directorate,HRG UK,130367127,8.02,Not applicable,
Department for Business Innovation and Skills,Intellectual Property Office,09/07/2014,Travel and subsistence UK,Innovation Directorate,HRG UK,130339135,8.02,Not applicable,
Department for Business Innovation and Skills,Intellectual Property Office,09/07/2014,Travel and subsistence UK,Innovation Directorate,HRG UK,130498401,8.02,Not applicable,
Department for Business Innovation and Skills,Intellectual Property Office,09/07/2014,Travel and subsistence UK,Copyright and IP Enforcement Directorate,HRG UK,130367159,8.02,Not applicable,
Department for Business Innovation and Skills,Intellectual Property Office,09/07/2014,Travel and subsistence UK,Innovation Directorate,HRG UK,130339134,8.02,Not applicable,
Department for Business Innovation and Skills,Intellectual Property Office,09/07/2014,Travel and subsistence UK,Innovation Directorate,HRG UK,130353713,8.02,Not applicable,
Department for Business Innovation and Skills,Intellectual Property Office,09/07/2014,Travel and subsistence UK,Copyright and IP Enforcement Directorate,HRG UK,130367156,8.02,Not applicable,
Department for Business Innovation and Skills,Intellectual Property Office,09/07/2014,Travel and subsistence UK,International Policy Directorate,HRG UK,130339220,8.02,Not applicable,
Department for Business Innovation and Skills,Intellectual Property Office,09/07/2014,Travel and subsistence UK,Copyright and IP Enforcement Directorate,HRG UK,130544465INV,8.22,Not applicable,
Department for Business Innovation and Skills,Intellectual Property Office,09/07/2014,Travel and subsistence UK,Copyright and IP Enforcement Directorate,HRG UK,130544754INV,8.22,Not applicable,
Department for Business Innovation and Skills,Intellectual Property Office,09/07/2014,Travel and subsistence UK,Innovation Directorate,HRG UK,130436745INV,8.37,Not applicable,
Department for Business Innovation and Skills,Intellectual Property Office,09/07/2014,Travel and subsistence UK,Innovation Directorate,HRG UK,130436745,8.38,Not applicable,
Department for Business Innovation and Skills,Intellectual Property Office,04/07/2014,Travel and subsistence UK,Central Support,Personal expenses name witheld,ER119462,8.40,Not applicable,
Department for Business Innovation and Skills,Intellectual Property Office,08/07/2014,Travel and subsistence UK,Patents Directorate,Personal expenses name witheld,ER119802,8.75,Not applicable,
Department for Business Innovation and Skills,Intellectual Property Office,09/07/2014,Travel and subsistence UK,International Policy Directorate,Personal expenses name witheld,ER119962,8.90,Not applicable,
Department for Business Innovation and Skills,Intellectual Property Office,09/07/2014,Travel and subsistence UK,International Policy Directorate,Personal expenses name witheld,ER120002,8.90,Not applicable,
Department for Business Innovation and Skills,Intellectual Property Office,09/07/2014,Travel and subsistence UK,International Policy Directorate,Personal expenses name witheld,ER119182,8.90,Not applicable,
Department for Business Innovation and Skills,Intellectual Property Office,09/07/2014,Travel and subsistence UK,Patents Directorate,HRG UK,130606803INV,8.97,Not applicable,
Department for Business Innovation and Skills,Intellectual Property Office,09/07/2014,Travel and subsistence UK,Patents Directorate,HRG UK,130606803,8.98,Not applicable,
Department for Business Innovation and Skills,Intellectual Property Office,09/07/2014,Travel and subsistence UK,Copyright and IP Enforcement Directorate,HRG UK,130428360INV,9.25,Not applicable,
Department for Business Innovation and Skills,Intellectual Property Office,09/07/2014,Travel and subsistence UK,Innovation Directorate,HRG UK,130448555INV,9.25,Not applicable,
Department for Business Innovation and Skills,Intellectual Property Office,23/07/2014,Travel and subsistence UK,International Policy Directorate,Personal expenses name witheld,ER121246,9.30,Not applicable,
Department for Business Innovation and Skills,Intellectual Property Office,28/07/2014,Travel and subsistence UK,Copyright and IP Enforcement Directorate,Personal expenses name witheld,ER121508,9.30,Not applicable,
Department for Business Innovation and Skills,Intellectual Property Office,28/07/2014,Travel and subsistence UK,Copyright and IP Enforcement Directorate,Personal expenses name witheld,ER121575,9.30,Not applicable,
Department for Business Innovation and Skills,Intellectual Property Office,15/07/2014,Travel and subsistence UK,"People, Property and Services Directorate",Personal expenses name witheld,ER120683,9.30,Not applicable,
Department for Business Innovation and Skills,Intellectual Property Office,28/07/2014,Travel and subsistence UK,Copyright and IP Enforcement Directorate,Personal expenses name witheld,ER121531,9.30,Not applicable,
Department for Business Innovation and Skills,Intellectual Property Office,04/07/2014,Travel and subsistence UK,International Policy Directorate,Personal expenses name witheld,ER119402,9.30,Not applicable,
Department for Business Innovation and Skills,Intellectual Property Office,15/07/2014,Travel and subsistence UK,Innovation Directorate,Personal expenses name witheld,ER120842,9.30,Not applicable,
Department for Business Innovation and Skills,Intellectual Property Office,21/07/2014,Travel and subsistence UK,Innovation Directorate,Personal expenses name witheld,ER120562,9.30,Not applicable,
Department for Business Innovation and Skills,Intellectual Property Office,17/07/2014,Travel and subsistence UK,Business Support Directorate,Personal expenses name witheld,ER120882,9.30,Not applicable,
Department for Business Innovation and Skills,Intellectual Property Office,14/07/2014,Travel and subsistence UK,Patents Directorate,Personal expenses name witheld,ER120543,9.30,Not applicable,
Department for Business Innovation and Skills,Intellectual Property Office,28/07/2014,Travel and subsistence UK,Copyright and IP Enforcement Directorate,Personal expenses name witheld,ER121547,9.30,Not applicable,
Department for Business Innovation and Skills,Intellectual Property Office,11/07/2014,Travel and subsistence UK,IMPROVE Project,Personal expenses name witheld,ER120322,9.30,Not applicable,
Department for Business Innovation and Skills,Intellectual Property Office,01/07/2014,Travel and subsistence UK,Business Support Directorate,Personal expenses name witheld,ER118282,9.30,Not applicable,
Department for Business Innovation and Skills,Intellectual Property Office,23/07/2014,Travel and subsistence UK,International Policy Directorate,Personal expenses name witheld,ER121304,9.30,Not applicable,
Department for Business Innovation and Skills,Intellectual Property Office,17/07/2014,Travel and subsistence UK,International Policy Directorate,Personal expenses name witheld,ER120542,9.45,Not applicable,
Department for Business Innovation and Skills,Intellectual Property Office,18/07/2014,Travel and subsistence UK,Innovation Directorate,Personal expenses name witheld,ER121122,9.45,Not applicable,
Department for Business Innovation and Skills,Intellectual Property Office,09/07/2014,Travel and subsistence UK,International Policy Directorate,HRG UK,130590282INV,9.72,Not applicable,
Department for Business Innovation and Skills,Intellectual Property Office,09/07/2014,Travel and subsistence UK,Business Support Directorate,HRG UK,130595010INV,9.72,Not applicable,
Department for Business Innovation and Skills,Intellectual Property Office,09/07/2014,Travel and subsistence UK,Business Support Directorate,HRG UK,130595010,9.73,Not applicable,
Department for Business Innovation and Skills,Intellectual Property Office,09/07/2014,Travel and subsistence UK,International Policy Directorate,HRG UK,130590282,9.73,Not applicable,
Department for Business Innovation and Skills,Intellectual Property Office,09/07/2014,Travel and subsistence UK,Copyright and IP Enforcement Directorate,HRG UK,130544465,9.86,Not applicable,
Department for Business Innovation and Skills,Intellectual Property Office,09/07/2014,Travel and subsistence UK,Copyright and IP Enforcement Directorate,HRG UK,130544754,9.86,Not applicable,
Department for Business Innovation and Skills,Intellectual Property Office,14/07/2014,Travel and subsistence UK,Innovation Directorate,Personal expenses name witheld,ER120442,9.90,Not applicable,
Department for Business Innovation and Skills,Intellectual Property Office,08/07/2014,Travel and subsistence UK,Innovation Directorate,Personal expenses name witheld,ER119162,10.00,Not applicable,
Department for Business Innovation and Skills,Intellectual Property Office,09/07/2014,Travel and subsistence UK,Innovation Directorate,HRG UK,130635835INV,10.26,Not applicable,
Department for Business Innovation and Skills,Intellectual Property Office,09/07/2014,Travel and subsistence UK,Innovation Directorate,HRG UK,130635835,10.27,Not applicable,
Department for Business Innovation and Skills,Intellectual Property Office,17/07/2014,Travel and subsistence UK,"People, Property and Services Directorate",Personal expenses name witheld,ER121042,10.35,Not applicable,
Department for Business Innovation and Skills,Intellectual Property Office,09/07/2014,Travel and subsistence UK,Innovation Directorate,HRG UK,130331966INV,10.77,Not applicable,
Department for Business Innovation and Skills,Intellectual Property Office,09/07/2014,Travel and subsistence UK,Innovation Directorate,HRG UK,130344747INV,11.03,Not applicable,
Department for Business Innovation and Skills,Intellectual Property Office,09/07/2014,Travel and subsistence UK,Innovation Directorate,HRG UK,130448555,11.10,Not applicable,
Department for Business Innovation and Skills,Intellectual Property Office,09/07/2014,Travel and subsistence UK,Copyright and IP Enforcement Directorate,HRG UK,130428360,11.10,Not applicable,
Department for Business Innovation and Skills,Intellectual Property Office,10/07/2014,Travel and subsistence UK,Copyright and IP Enforcement Directorate,Personal expenses name witheld,ER120062,11.11,Not applicable,
Department for Business Innovation and Skills,Intellectual Property Office,23/07/2014,Travel and subsistence UK,International Policy Directorate,Personal expenses name witheld,ER121403,11.25,Not applicable,
Department for Business Innovation and Skills,Intellectual Property Office,02/07/2014,Travel and subsistence UK,Patents Directorate,Personal expenses name witheld,ER119202,11.45,Not applicable,
Department for Business Innovation and Skills,Intellectual Property Office,18/07/2014,Travel and subsistence UK,"People, Property and Services Directorate",Personal expenses name witheld,ER121024,11.70,Not applicable,
Department for Business Innovation and Skills,Intellectual Property Office,08/07/2014,Travel and subsistence UK,Patents Directorate,Personal expenses name witheld,ER119782,11.95,Not applicable,
Department for Business Innovation and Skills,Intellectual Property Office,18/07/2014,Travel and subsistence UK,International Policy Directorate,Personal expenses name witheld,ER121224,12.00,Not applicable,
Department for Business Innovation and Skills,Intellectual Property Office,23/07/2014,Travel and subsistence UK,Copyright and IP Enforcement Directorate,Personal expenses name witheld,ER120872,12.15,Not applicable,
Department for Business Innovation and Skills,Intellectual Property Office,09/07/2014,Travel and subsistence UK,Innovation Directorate,HRG UK,130579595INV,12.55,Not applicable,
Department for Business Innovation and Skills,Intellectual Property Office,09/07/2014,Travel and subsistence UK,Business Support Directorate,HRG UK,130542209INV,12.55,Not applicable,
Department for Business Innovation and Skills,Intellectual Property Office,09/07/2014,Travel and subsistence UK,Business Support Directorate,HRG UK,130408651INV,12.55,Not applicable,
Department for Business Innovation and Skills,Intellectual Property Office,09/07/2014,Travel and subsistence UK,Innovation Directorate,HRG UK,130579596INV,12.55,Not applicable,
Department for Business Innovation and Skills,Intellectual Property Office,09/07/2014,Travel and subsistence UK,Business Support Directorate,HRG UK,130542209,12.56,Not applicable,
Department for Business Innovation and Skills,Intellectual Property Office,09/07/2014,Travel and subsistence UK,Business Support Directorate,HRG UK,130408651,12.56,Not applicable,
Department for Business Innovation and Skills,Intellectual Property Office,09/07/2014,Travel and subsistence UK,Innovation Directorate,HRG UK,130579596,12.56,Not applicable,
Department for Business Innovation and Skills,Intellectual Property Office,09/07/2014,Travel and subsistence UK,Innovation Directorate,HRG UK,130579595,12.56,Not applicable,
Department for Business Innovation and Skills,Intellectual Property Office,01/07/2014,Travel and subsistence UK,Finance Directorate,Personal expenses name witheld,ER119002,12.60,Not applicable,
Department for Business Innovation and Skills,Intellectual Property Office,24/07/2014,Travel and subsistence UK,Innovation Directorate,Personal expenses name witheld,ER121426,12.60,Not applicable,
Department for Business Innovation and Skills,Intellectual Property Office,09/07/2014,Travel and subsistence UK,Patents Directorate,HRG UK,130606788INV,12.75,Not applicable,
Department for Business Innovation and Skills,Intellectual Property Office,09/07/2014,Travel and subsistence UK,Patents Directorate,HRG UK,130606788,12.76,Not applicable,
Department for Business Innovation and Skills,Intellectual Property Office,23/07/2014,Travel and subsistence UK,Copyright and IP Enforcement Directorate,Personal expenses name witheld,ER120874,12.95,Not applicable,
Department for Business Innovation and Skills,Intellectual Property Office,09/07/2014,Travel and subsistence UK,International Policy Directorate,HRG UK,130364710INV,12.97,Not applicable,
Department for Business Innovation and Skills,Intellectual Property Office,09/07/2014,Travel and subsistence UK,International Policy Directorate,HRG UK,130364710,12.98,Not applicable,
Department for Business Innovation and Skills,Intellectual Property Office,23/07/2014,Travel and subsistence UK,Innovation Directorate,Personal expenses name witheld,ER121404,13.60,Not applicable,
Department for Business Innovation and Skills,Intellectual Property Office,09/07/2014,Travel and subsistence UK,Copyright and IP Enforcement Directorate,HRG UK,130485669INV,13.75,Not applicable,
Department for Business Innovation and Skills,Intellectual Property Office,09/07/2014,Travel and subsistence UK,Copyright and IP Enforcement Directorate,HRG UK,130485669,13.76,Not applicable,
Department for Business Innovation and Skills,Intellectual Property Office,24/07/2014,Travel and subsistence UK,Patents Directorate,Leasedrive Velo Rental Management Ltd,RHI01202227,14.69,Not applicable,
Department for Business Innovation and Skills,Intellectual Property Office,03/07/2014,Travel and subsistence UK,Innovation Directorate,Leasedrive Velo Rental Management Ltd,RHI01169952,14.72,Not applicable,
Department for Business Innovation and Skills,Intellectual Property Office,15/07/2014,Travel and subsistence UK,Copyright and IP Enforcement Directorate,Personal expenses name witheld,ER120863,16.60,Not applicable,
Department for Business Innovation and Skills,Intellectual Property Office,03/07/2014,Travel and subsistence UK,IMPROVE Project,Personal expenses name witheld,ER119423,16.80,Not applicable,
Department for Business Innovation and Skills,Intellectual Property Office,17/07/2014,Travel and subsistence UK,IMPROVE Project,Personal expenses name witheld,ER121022,16.80,Not applicable,
Department for Business Innovation and Skills,Intellectual Property Office,25/07/2014,Travel and subsistence UK,International Policy Directorate,Personal expenses name witheld,ER121467,17.00,Not applicable,
Department for Business Innovation and Skills,Intellectual Property Office,04/07/2014,Travel and subsistence UK,International Policy Directorate,Personal expenses name witheld,ER119222,17.00,Not applicable,
Department for Business Innovation and Skills,Intellectual Property Office,09/07/2014,Travel and subsistence UK,Copyright and IP Enforcement Directorate,HRG UK,130505594INV,17.16,Not applicable,
Department for Business Innovation and Skills,Intellectual Property Office,09/07/2014,Travel and subsistence UK,Copyright and IP Enforcement Directorate,HRG UK,130450321INV,17.16,Not applicable,
Department for Business Innovation and Skills,Intellectual Property Office,09/07/2014,Travel and subsistence UK,Copyright and IP Enforcement Directorate,HRG UK,130505596INV,17.16,Not applicable,
Department for Business Innovation and Skills,Intellectual Property Office,09/07/2014,Travel and subsistence UK,Copyright and IP Enforcement Directorate,HRG UK,130526968INV,17.16,Not applicable,
Department for Business Innovation and Skills,Intellectual Property Office,09/07/2014,Travel and subsistence UK,Innovation Directorate,HRG UK,130461515INV,17.16,Not applicable,
Department for Business Innovation and Skills,Intellectual Property Office,09/07/2014,Travel and subsistence UK,Copyright and IP Enforcement Directorate,HRG UK,130526968,17.18,Not applicable,
Department for Business Innovation and Skills,Intellectual Property Office,09/07/2014,Travel and subsistence UK,Innovation Directorate,HRG UK,130461515,17.18,Not applicable,
Department for Business Innovation and Skills,Intellectual Property Office,09/07/2014,Travel and subsistence UK,Copyright and IP Enforcement Directorate,HRG UK,130505594,17.18,Not applicable,
Department for Business Innovation and Skills,Intellectual Property Office,09/07/2014,Travel and subsistence UK,Copyright and IP Enforcement Directorate,HRG UK,130450321,17.18,Not applicable,
Department for Business Innovation and Skills,Intellectual Property Office,09/07/2014,Travel and subsistence UK,Copyright and IP Enforcement Directorate,HRG UK,130505596,17.18,Not applicable,
Department for Business Innovation and Skills,Intellectual Property Office,23/07/2014,Travel and subsistence UK,Copyright and IP Enforcement Directorate,Personal expenses name witheld,ER112723,17.20,Not applicable,
Department for Business Innovation and Skills,Intellectual Property Office,23/07/2014,Travel and subsistence UK,Copyright and IP Enforcement Directorate,Personal expenses name witheld,ER112745,17.20,Not applicable,
Department for Business Innovation and Skills,Intellectual Property Office,23/07/2014,Travel and subsistence UK,Copyright and IP Enforcement Directorate,Personal expenses name witheld,ER120866,17.20,Not applicable,
Department for Business Innovation and Skills,Intellectual Property Office,16/07/2014,Travel and subsistence UK,Central Support,Veezu Ltd T/A Dragon Taxis (Newport),1930,17.50,Not applicable,
Department for Business Innovation and Skills,Intellectual Property Office,25/07/2014,Travel and subsistence UK,International Policy Directorate,Personal expenses name witheld,ER118602,17.70,Not applicable,
